Workbook

Sheet At a glance
B2: BUSINESS AND INFRASTRUCTURE
B4: Chris Patterson
B6: At a glance
B7: Companies listed on the Johannesburg Stock Exchange (2025) | C7: 271
B8: — New listings | C8: 7
B9: — Delistings | C9: 16
B10: — Foreign listings | C10: 59
B11: — Domestic listings | C11: 212
B12: Sacci Business Confidence Index (2025) | C12: 121.7
B13: Number of enterprises (2022) | C13: 356842
B14: Number of Small Medium and Micro Enterprises (4Q 2023) | C14: 2.66m
B15: — Proportion formal | C15: 0.301385026
B16: — Proportion informal | C16: 0.698614974
B17: New car sales (February 2025) | C17: 422292
B18: New commercial vehicle sales (February 2025) | C18: 143637
B19: Total vehicle exports (February 2025) | C19: 408224
B20: Total domestic vehicle production (February 2025) | C20: 616466
B21: South Africa's competitiveness rankings
B22: — Attractiveness for mining investment (2025) | C22: 57th out of 68
B23: — Economic freedom of the world: Heritage Foundation (2026) | C23: 100th out of 176
B24: Electricity generation (2025)
B25: —Coal | C25: 0.917
B26: —Nuclear power | C26: 0.043
B27: —Hydro stations | C27: 0.004
B28: — Other | C28: 0.037
B29: Electricity sales (2025)
B30: —Distributors | C30: 0.416
B31: —Industrial | C31: 0.227
B32: —Mining | C32: 0.144
B33: —Other | C33: 0.213
B34: Total dam capacity (2026) | C34: 31 752.5 mm3

Sheet BUSINESS

Sheet All sizes of business.08-25
C2: BUSINESS
C4: Registrations
C6: Company registrations, 2008/09-2024/25
C8: Year | D8: Registrationsa
C9: 2008/09 | D9: 27358
C10: 2009/10 | D10: 26334
C11: 2010/11 | D11: 27530
C12: 2011/12 | D12: 121768
C13: 2012/13 | D13: 222146
C14: 2013/14 | D14: 240781
C15: 2014/15 | D15: 236673
C16: 2015/16 | D16: 317498
C17: 2016/17 | D17: 378435
C18: 2017/18 | D18: 386373
C19: 2018/19 | D19: 395320
C20: 2019/20 | D20: 385181
C21: 2020/21 | D21: 510024
C22: 2021/22 | D22: 469983
C23: 2022/23 | D23: 404095
C24: 2024/25 | D24: 488355
C25: Total | D25: =SUM(D9:D24) -> 4637854
C26: 2008/09-2024/25 | D26: =(D24-D9)/D9 -> 16.85053732
C27: Source: Socio-Economic Survey of South Africa 2025, p304 ; Companies and Intellectual Property Commission (CIPC), Annual Report 2024/25, accessed 15 May 2026, p67
C28: a Companies registered for each year. According to the CIPC, economic difficulties result in individuals exploring alternative forms of revenue, which could also account for the rise in company registrations.

Sheet Cooperatives registra.2008-25
A2: ***
C3: Registration of Co-operatives, 2008/09-2024/25
C5: Year | D5: Registrationsa
C6: 2008/09 | D6: 6504
C7: 2009/10 | D7: 9279
C8: 2010/11 | D8: 8109
C9: 2011/12 | D9: 15340
C10: 2012/13 | D10: 21515
C11: 2013/14 | D11: 21330
C12: 2014/15 | D12: 20396
C13: 2015/16 | D13: 13856
C14: 2016/17 | D14: 12424
C15: 2017/18 | D15: 12748
C16: 2018/19 | D16: 12270
C17: 2019/20 | D17: 12478
C18: 2020/21 | D18: 6142
C19: 2021/22 | D19: 4403
C20: 2022/23 | D20: 6253
C21: 2024/25 | D21: 5622
C22: Total | D22: =SUM(D6:D21) -> 188669
C23: 2008/09-2024/25 | D23: =(D21-D6)/D6 -> -0.1356088561
C24: Source: Socio-Economic Survey of South Africa 2025, p305; CIPC, Annual Report 2024/25, accessed 15 May 2026, p67
C25: a Co-operatives registered for each year.

Sheet Businesses by sector

Sheet Enterprises..

Sheet Number of enterprises 09-22
A2: Businesses by sector
A5: Enterprises
A7: Enterprisesa by industry (actual numbers), 2009-22
A9: Industry | B9: 2009 | C9: 2010 | D9: 2012 | E9: 2014 | F9: 2015 | G9: 2016 | H9: 2017 | I9: 2018 | J9: 2019 | K9: 2020 | L9: 2021 | M9: 2022
A10: Forestry and fishing | B10: 1779 | C10: 1772 | D10: 1676 | E10: 1541 | F10: 1555 | G10: 1456 | H10: 1405 | I10: 1458 | J10: 1437 | K10: 1513 | L10: 1474 | M10: 1425
A11: Mining and quarrying | B11: 2297 | C11: 2201 | D11: 2234 | E11: 2247 | F11: 2348 | G11: 2447 | H11: 2603 | I11: 2801 | J11: 2824 | K11: 3166 | L11: 3149 | M11: 4354
A12: Manufacturing | B12: 57239 | C12: 53119 | D12: 49479 | E12: 45405 | F12: 45285 | G12: 45966 | H12: 47438 | I12: 50191 | J12: 49776 | K12: 53926 | L12: 53831 | M12: 55261
A13: Electricity, gas and water supply | B13: 1033 | C13: 998 | D13: 507 | E13: 622 | F13: 754 | G13: 947 | H13: 1127 | I13: 1296 | J13: 1451 | K13: 1558 | L13: 1679 | M13: 1783
A14: Construction | B14: 40660 | C14: 38294 | D14: 36291 | E14: 33735 | F14: 34789 | G14: 35571 | H14: 36479 | I14: 39608 | J14: 39108 | K14: 43266 | L14: 43111 | M14: 42444
A15: Trade | B15: 127962 | C15: 116211 | D15: 110694 | E15: 102989 | F15: 103854 | G15: 101932 | H15: 101454 | I15: 105308 | J15: 101660 | K15: 106020 | L15: 103277 | M15: 100250
A16: Transport, storage and communication | B16: 18832 | C16: 17675 | D16: 16650 | E16: 15691 | F16: 16136 | G16: 16243 | H16: 16332 | I16: 17174 | J16: 16748 | K16: 17683 | L16: 17441 | M16: 17200
A17: Activities auxiliary to financial intermediation, real estate and other business servicesc | B17: 213538 | C17: 98385 | D17: 101366 | E17: 97591 | F17: 100308 | G17: 99866 | H17: 100246 | I17: 104176 | J17: 102751 | K17: 106840 | L17: 105222 | M17: 102867
A18: Community, social and personal servicesd | B18: 29732 | C18: 26888 | D18: 26480 | E18: 25727 | F18: 26478 | G18: 26752 | H18: 27478 | I18: 28898 | J18: 28821 | K18: 31349 | L18: 31321 | M18: 31258
A19: All industries | B19: 493072 | C19: 355543 | D19: 345377 | E19: 325548 | F19: 331507 | G19: 331180 | H19: 334562 | I19: 350911 | J19: 344576 | K19: =SUM(K10:K18) -> 365321 | L19: 360505 | M19: 356842
A20: Source: Socio-Economic Survey of South Africa 2025, p306; Stats SA, Annual Financial Statistics, 2022, Statistical release P0021, 16 November 2023
A21: a An enterprise is a legal unit or a combination of legal units that includes and directly controls all functions necessary to carry out its activities.
A22: b Excludes financial intermediation, insurance, pension funding and business services not classified elsewhere.
A23: c Excludes government and educational institutions.

Sheet Enterprises per industry %
A2: Enterprises by industry (proportions), 2019-22
A4: Industry | B4: 2009 | C4: 2010 | D4: 2012 | E4: 2014 | F4: 2015 | G4: 2016 | H4: 2017 | I4: 2018 | J4: 2019 | K4: 2020 | L4: 2021 | M4: 2022
A5: Forestry and fishing | B5: 0.003607992342 | C5: 0.004983925995 | D5: 0.004852668244 | E5: 0.004733556956 | F5: 0.004690700347 | G5: 0.004396400749 | H5: 0.004 | I5: 0.004 | J5: 0.004170342682 | K5: ='Number of enterprises 09-22'!K10/'Number of enterprises 09-22'!K19 -> 0.004141563173 | L5: ='Number of enterprises 09-22'!L10/'Number of enterprises 09-22'!L19 -> 0.004088708894 | M5: 0.00399336401
A6: Mining and quarrying | B6: 0.004658548853 | C6: 0.006190531103 | D6: 0.006468294067 | E6: 0.006902207969 | F6: 0.007082806698 | G6: 0.007388731204 | H6: 0.008 | I6: 0.008 | J6: 0.008195579495 | K6: ='Number of enterprises 09-22'!K11/'Number of enterprises 09-22'!K19 -> 0.008666350963 | L6: ='Number of enterprises 09-22'!L11/'Number of enterprises 09-22'!L19 -> 0.008734969002 | M6: 0.01220147853
A7: Manufacturing | B7: 0.1160864945 | C7: 0.1494024633 | D7: 0.1432608425 | E7: 0.1394725202 | F7: 0.1366034503 | G7: 0.1387946132 | H7: 0.142 | I7: 0.144 | J7: 0.1444557949 | K7: ='Number of enterprises 09-22'!K12/'Number of enterprises 09-22'!K19 -> 0.1476126475 | L7: ='Number of enterprises 09-22'!L12/'Number of enterprises 09-22'!L19 -> 0.1493210912 | M7: 0.1548612551
A8: Electricity, gas and water supply | B8: 0.002095028718 | C8: 0.002806974121 | D8: 0.001467961098 | E8: 0.001910624547 | F8: 0.002274461776 | G8: 0.00285947219 | H8: 0.003 | I8: 0.004 | J8: 0.004210972325 | K8: ='Number of enterprises 09-22'!K13/'Number of enterprises 09-22'!K19 -> 0.004264742514 | L8: ='Number of enterprises 09-22'!L13/'Number of enterprises 09-22'!L19 -> 0.004657355654 | M8: 0.004996609144
A9: Construction | B9: 0.08246260181 | C9: 0.1077056784 | D9: 0.1050764816 | E9: 0.1036252718 | F9: 0.1049419771 | G9: 0.1074068482 | H9: 0.109 | I9: 0.113 | J9: 0.1134960067 | K9: ='Number of enterprises 09-22'!K14/'Number of enterprises 09-22'!K19 -> 0.1184328303 | L9: ='Number of enterprises 09-22'!L14/'Number of enterprises 09-22'!L19 -> 0.1195850266 | M9: 0.1189433979
A10: Trade | B10: 0.2595199078 | C10: 0.3268549796 | D10: 0.3205019443 | E10: 0.3163558062 | F10: 0.3132784526 | G10: 0.3077842865 | H10: 0.303 | I10: 0.295 | J10: 0.2950292533 | K10: ='Number of enterprises 09-22'!K15/'Number of enterprises 09-22'!K19 -> 0.2902105272 | L10: ='Number of enterprises 09-22'!L15/'Number of enterprises 09-22'!L19 -> 0.2864786896 | M10: 0.280936661
A11: Transport, storage and communication | B11: 0.03819320505 | C11: 0.04971269298 | D11: 0.04820818989 | E11: 0.04819872953 | F11: 0.04867468862 | G11: 0.0490458361 | H11: 0.049 | I11: 0.049 | J11: 0.04860466196 | K11: ='Number of enterprises 09-22'!K16/'Number of enterprises 09-22'!K19 -> 0.04840400634 | L11: ='Number of enterprises 09-22'!L16/'Number of enterprises 09-22'!L19 -> 0.04837935674 | M11: 0.04820060419
A12: Activities auxiliary to financial intermediation, real estate and other business services | B12: 0.4330767109 | C12: 0.2767175841 | D12: 0.2934937764 | E12: 0.299774534 | F12: 0.3025818459 | G12: 0.3015459871 | H12: 0.3 | I12: 0.298 | J12: 0.2981954634 | K12: ='Number of enterprises 09-22'!K17/'Number of enterprises 09-22'!K19 -> 0.2924551285 | L12: ='Number of enterprises 09-22'!L17/'Number of enterprises 09-22'!L19 -> 0.2918738991 | M12: 0.288270439
A13: Community, social and personal services | B13: 0.06029951001 | C13: 0.07562517051 | D13: 0.07666984194 | E13: 0.07902674874 | F13: 0.07987161659 | G13: 0.08077782475 | H13: 0.082 | I13: 0.084 | J13: 0.08364192515 | K13: ='Number of enterprises 09-22'!K18/'Number of enterprises 09-22'!K19 -> 0.08581220351 | L13: ='Number of enterprises 09-22'!L18/'Number of enterprises 09-22'!L19 -> 0.08688090318 | M13: 0.08759619103
A14: All industries | B14: 1 | C14: 1 | D14: 1 | E14: 1 | F14: 1 | G14: 1 | H14: 1 | I14: 1 | J14: 1 | K14: =SUM(K5:K13) -> 1 | L14: =SUM(L5:L13) -> 1 | M14: 1
A15: Source: CRA calculations based os Stats SA data

Sheet SMMEs by province Q4 2023
B2: Small Medium and Micro Enterprises (SMMEs) by province, 4Q 2023
B4: Province | C4: Number | D4: Proportion of total
B5: Eastern Cape | C5: 178187 | D5: =C5/C14 -> 0.0668910546
B6: Free State | C6: 116900 | D6: =C6/C14 -> 0.04388403353
B7: Gauteng | C7: 825804 | D7: =C7/C14 -> 0.3100052218
B8: KwaZulu-Natal | C8: 487170 | D8: =C8/C14 -> 0.1828826742
B9: Limpopo | C9: 312945 | D9: =C9/C14 -> 0.1174789467
B10: Mpumalanga | C10: 253539 | D10: =C10/C14 -> 0.09517804942
B11: North West | C11: 133205 | D11: =C11/C14 -> 0.05000489894
B12: Northern Cape | C12: 24096 | D12: =C12/C14 -> 0.009045591719
B13: Western Cape | C13: 331993 | D13: =C13/C14 -> 0.124629529
B14: South Africa | C14: 2663839 | D14: =SUM(D5:D13) -> 1
B15: Source: Small Enterprise Development Agency (SEDA), SMME Quarterly Update 4th Quarter 2023, September 2024, p21

Sheet SMMEs by sector Q4 2023
B2: SMMEs by sector, 4Q 2023
B4: Sector | C4: Number | D4: Proportion of total
B5: Agriculture | C5: 58314 | D5: =(C5/Total95255) -> 0.02189096263
B6: Mining | C6: 3958 | D6: 0.001485825532
B7: Manufacturing | C7: 200073 | D7: 0.0751070166
B8: Electricity gas and water | C8: 3248 | D8: =(C8/Total95255) -> 0.001219292908
B9: Construction | C9: 340392 | D9: 0.1277824974
B10: Trade and accommodation | C10: 1060254 | D10: 0.3980172976
B11: Transport and communication | C11: 180813 | D11: 0.06787684991
B12: Finance and business services | C12: 380295 | D12: 0.1427620063
B13: Community | C13: 430122 | D13: 0.1614669655
B14: Other | C14: 6369 | D14: 0.002390910261
B15: Formal | C15: 783347 | D15: =(C15/Total95255) -> 0.2940669462
B16: Informal | C16: 1815810 | D16: =(C16/Total95255) -> 0.6816515563
B17: Other/unspecified | C17: 64682 | D17: =(C17/Total95255) -> 0.02428149749
B18: Total | C18: 2663839 | D18: =(C18/Total95255) -> 1
B19: Source: SEDA, SMME Quarterly Update 4th Quarter 2023, March 2023, pp2, 20

Sheet Vehicle sales

Sheet New vehicle sales.95-25
B2: Vehicle sales
A4: New vehicle sales, production and exportsa, 1995-2025
A6: Year | B6: New car sales | C6: New light commercial vehicle (LCV) sales | D6: New medium commercial vehicle (MCV)/heavy commercial vehicle (HCV) sales | E6: Total vehicle exports | F6: Total domestic vehicle production
A7: 1995 | B7: 255817 | C7: 131397 | D7: 12753 | E7: 15764 | F7: 389392
A8: 1996 | B8: 273384 | C8: 133075 | D8: 14617 | E8: 11553 | F8: 386302
A9: 1997 | B9: 267762 | C9: 117754 | D9: 13759 | E9: 19569 | F9: 362316
A10: 1998 | B10: 234821 | C10: 103178 | D10: 12811 | E10: 25896 | F10: 311633
A11: 1999 | B11: 214370 | C11: 99669 | D11: 11736 | E11: 59716 | F11: 326722
A12: 2000 | B12: 234122 | C12: 108235 | D12: 12275 | E12: 68031 | F12: 356800
A13: 2001 | B13: 251560 | C13: 117646 | D13: 13323 | E13: 108293 | F13: 406779
A14: 2002 | B14: 241602 | C14: 107247 | D14: 14335 | E14: 125306 | F14: 405071
A15: 2003 | B15: 258259 | C15: 107384 | D15: 16957 | E15: 126661 | F15: 421965
A16: 2004 | B16: 327651 | C16: 132405 | D16: 21464 | E16: 110507 | F16: 455702
A17: 2005 | B17: 419868 | C17: 170132 | D17: 27406 | E17: 139912 | F17: 525227
A18: 2006 | B18: 481558 | C18: 199677 | D18: 33080 | E18: 179859 | F18: 587719
A19: 2007 | B19: 434653 | C19: 204386 | D19: 37069 | E19: 171237 | F19: 534490
A20: 2008 | B20: 329262 | C20: 169466 | D20: 34659 | E20: 284211 | F20: 562965
A21: 2009 | B21: 258129 | C21: 118159 | D21: 18934 | E21: 174947 | F21: 373923
A22: 2010 | B22: 338939 | C22: 131611 | D22: 22245 | E22: 239471 | F22: 469838
A23: 2011 | B23: 400433 | C23: 151814 | D23: 26630 | E23: 272469 | F23: 526436
A24: 2012 | B24: 442048 | C24: 160654 | D24: 27840 | E24: 277992 | F24: 538600
A25: 2013 | B25: 450297 | C25: 167996 | D25: 30924 | E25: 276403 | F25: 537034
A26: 2014 | B26: 438937 | C26: 173811 | D26: 31509 | E26: 276936 | F26: 558187
A27: 2015 | B27: 412397 | C27: 174812 | D27: 30441 | E27: 333845 | F27: 615444
A28: 2016 | B28: 361265 | C28: 159316 | D28: 26971 | E28: 344816 | F28: 599812
A29: 2017 | B29: 368114 | C29: 163317 | D29: 26273 | E29: 338095 | F29: 600138 | Y29: 20241001-Flash-Report-September-2024-1.pdf
A30: 2018 | B30: 365247 | C30: 159525 | D30: 27455 | E30: 351139 | F30: 610060
A31: 2019 | B31: 355379 | C31: 153221 | D31: 28012 | E31: 387092 | F31: 631918
A32: 2020 | B32: 246541 | C32: 110912 | D32: 22614 | E32: 271427 | F32: 446216 | Y32: https://naamsa.net/quarterly-reviews/
A33: 2021 | B33: 304338 | C33: 133078 | D33: 26906 | E33: 298188 | F33: 449086
A34: 2022 | B34: 363681 | C34: 135711 | D34: 29942 | E34: 351991 | F34: 555885
A35: 2023 | B35: 347377 | C35: 151490 | D35: 32690 | E35: 399809 | F35: 632362
A36: 2024 | B36: 351551 | C36: 133250 | D36: 31205 | E36: 391129 | F36: 600171
A37: 2025 | B37: 422292 | C37: 143637 | D37: 30889 | E37: 408224 | F37: 616466
A38: Source: National Association of Automobile Manufacturers of South Africa (NAAMSA), Industry New Vehicle Sales, December 2025, p2; Quarterly review of Business Conditions, 4th Quarter 2025,17 February 2025, p8
A39: a Table includes vehicles that have been imported, and South African manufactured vehicles that have been exported for sale.

Sheet LG New vehicle sales etc,.95-25
A1: New vehicle sales, production, and exports, 1995–2025
B3: New car sales | C3: New LCV sales | D3: New MCV/ HCV sales | E3: Total vehicle exports | F3: Total domestic vehicle production
A4: 1995 | B4: 255817 | C4: 131397 | D4: 12753 | E4: 15764 | F4: 389392
A5: 1996 | B5: 273384 | C5: 133075 | D5: 14617 | E5: 11553 | F5: 386302
A6: 1997 | B6: 267762 | C6: 117754 | D6: 13759 | E6: 19569 | F6: 362316
A7: 1998 | B7: 234821 | C7: 103178 | D7: 12811 | E7: 25896 | F7: 311633
A8: 1999 | B8: 214370 | C8: 99669 | D8: 11736 | E8: 59716 | F8: 326722
A9: 2000 | B9: 234122 | C9: 108235 | D9: 12275 | E9: 68031 | F9: 356800
A10: 2001 | B10: 251560 | C10: 117646 | D10: 13323 | E10: 108293 | F10: 406779
A11: 2002 | B11: 241602 | C11: 107247 | D11: 14335 | E11: 125306 | F11: 405071
A12: 2003 | B12: 258259 | C12: 107384 | D12: 16957 | E12: 126661 | F12: 421965
A13: 2004 | B13: 327651 | C13: 132405 | D13: 21464 | E13: 110507 | F13: 455702
A14: 2005 | B14: 419868 | C14: 170132 | D14: 27406 | E14: 139912 | F14: 525227
A15: 2006 | B15: 481558 | C15: 199677 | D15: 33080 | E15: 179859 | F15: 587719
A16: 2007 | B16: 434653 | C16: 204386 | D16: 37069 | E16: 171237 | F16: 534490
A17: 2008 | B17: 329262 | C17: 169466 | D17: 34659 | E17: 284211 | F17: 562965
A18: 2009 | B18: 258129 | C18: 118159 | D18: 18934 | E18: 174947 | F18: 373923
A19: 2010 | B19: 338939 | C19: 131611 | D19: 22245 | E19: 239471 | F19: 469838
A20: 2011 | B20: 400433 | C20: 151814 | D20: 26630 | E20: 272469 | F20: 526436
A21: 2012 | B21: 442048 | C21: 160654 | D21: 27840 | E21: 277992 | F21: 538600
A22: 2013 | B22: 450297 | C22: 167996 | D22: 30924 | E22: 276403 | F22: 537034
A23: 2014 | B23: 438937 | C23: 173811 | D23: 31509 | E23: 276936 | F23: 558187
A24: 2015 | B24: 412397 | C24: 174812 | D24: 30441 | E24: 333845 | F24: 615444
A25: 2016 | B25: 361265 | C25: 159316 | D25: 26971 | E25: 344816 | F25: 599812
A26: 2017 | B26: 368114 | C26: 163317 | D26: 26272 | E26: 338095 | F26: 600138
A27: 2018 | B27: 365247 | C27: 159525 | D27: 27449 | E27: 351143 | F27: 610060
A28: 2019 | B28: 355379 | C28: 153221 | D28: 27891 | E28: 387210 | F28: 631918
A29: 2020 | B29: 246541 | C29: 110912 | D29: 22614 | E29: 271427 | F29: 446216
A30: 2021 | B30: 304338 | C30: 133078 | D30: 26906 | E30: 298188 | F30: 449086
A31: 2022 | B31: 363681 | C31: 135711 | D31: 29942 | E31: 351991 | F31: 555885
A32: 2023 | B32: 347377 | C32: 151490 | D32: 32690 | E32: 399809 | F32: 632362
A33: 2024 | B33: 351551 | C33: 133250 | D33: 31205 | E33: 391129 | F33: 600171
A34: 2025 | B34: 422292 | C34: 143637 | D34: 30889 | E34: 408224 | F34: 616466

Sheet Formal private sector

Sheet Listed companies

Sheet Forbes Top 2000.SA companies.25
A2: The formal private sector
A4: Listed companies
A6: Global rankings
A8: South African companies ranked in the Forbes Top 2 000 companies, 2025
C10: Sales | D10: Profits | E10: Assets
A11: Rank | B11: Company | C11: —$bn—
A12: 473 | B12: FirstRand | C12: 13.87 | D12: 2.26 | E12: 134.77
A13: 510 | B13: Standard Bank Group | C13: 11.56 | D13: 2.39 | E13: 173.26
A14: 575 | B14: Naspers | C14: 6.87 | D14: 3.31 | E14: 69.71
A15: 848 | B15: Sanlam | C15: 12.78 | D15: 1.21 | E15: 60.04
A16: 860 | B16: Absa Group | C16: 12.07 | D16: 1.17 | E16: 109.63
A17: 1046 | B17: Nedbank | C17: 8.89 | D17: 0.92 | E17: 75.1
A18: 1207 | B18: Old Mutual | C18: 13.26 | D18: 0.41 | E18: 65.46
A19: 1300 | B19: Gold Fields | C19: 5.18 | D19: 1.24 | E19: 10.14
A20: 1365 | B20: AngloGold Ashanti | C20: 5.79 | D20: 1 | E20: 13.16
A21: 1504 | B21: MTN Group | C21: 10.26 | D21: -0.52 | E21: 22.84
A22: 1557 | B22: Capitec | C22: 3.1 | D22: 0.65 | E22: 12.54
A23: 1636 | B23: Momentum Metropolitan Holdings | C23: 8.42 | D23: 0.27 | E23: 39.88
A24: 1722 | B24: Sasol | C24: 14.23 | D24: -2.69 | E24: 19.48
A25: 1933 | B25: Bid | C25: 12.55 | D25: 0.43 | E25: 5.77
A26: Source: Forbes, www.forbes.com, accessed 15 May 2026
A27: The Forbes Top 2 000 companies list is compiled by screening the biggest publicly traded companies and ranking them on their sales, profits, assets, and market value.

Sheet JSE listings

Sheet JSE listed Companies, 04-25
A2: Listings on the Johannesburg Stock Exchange (JSE)
A4: Number of companies listed on the Johannesburg Stock Exchange (JSE), 2004-25
A6: Listing | B6: 2004 | C6: 2005 | D6: 2006 | E6: 2007 | F6: 2008 | G6: 2009 | H6: 2010 | I6: 2011 | J6: 2012 | K6: 2013 | L6: 2014 | M6: 2015 | N6: 2016 | O6: 2017 | P6: 2018 | Q6: 2019 | R6: 2020 | S6: 2021 | T6: 2022 | U6: 2023 | V6: 2024 | W6: 2025
A7: New listings | B7: 17 | C7: 19 | D7: 37 | E7: 62 | F7: 23 | G7: 10 | H7: 14 | I7: 16 | J7: 14 | K7: 13 | L7: 24 | M7: 23 | N7: 18 | O7: 21 | P7: 12 | Q7: 6 | R7: 5 | S7: 9 | T7: 5 | U7: 3 | V7: 8 | W7: 7
A8: Delistings | B8: 39 | C8: 35 | D8: 24 | E8: 40 | F8: 20 | G8: 25 | H8: 17 | I8: 17 | J8: 18 | K8: 26 | L8: 22 | M8: 19 | N8: 25 | O8: 32 | P8: 17 | Q8: 24 | R8: 20 | S8: 24 | T8: 25 | U8: 23 | V8: 12 | W8: 16
A9: Foreign listings | B9: 21 | C9: 24 | D9: 30 | E9: 37 | F9: 46 | G9: 47 | H9: 47 | I9: 51 | J9: 52 | K9: 56 | L9: 62 | M9: 71 | N9: 76 | O9: 75 | P9: 74 | Q9: 71 | R9: 69 | S9: 72 | T9: 67 | U9: 60 | V9: 60 | W9: 59
A10: Domestic listings | B10: 383 | C10: 364 | D10: 371 | E10: 385 | F10: 379 | G10: 363 | H10: 360 | I10: 355 | J10: 350 | K10: 333 | L10: 329 | M10: 324 | N10: 312 | O10: 302 | P10: 298 | Q10: 283 | R10: 270 | S10: 252 | T10: 237 | U10: 224 | V10: 220 | W10: 212
A11: Totala | B11: 404 | C11: 388 | D11: 401 | E11: 422 | F11: 425 | G11: 410 | H11: 407 | I11: 406 | J11: 402 | K11: 389 | L11: 391 | M11: 395 | N11: 388 | O11: =SUM(O9:O10) -> 377 | P11: 372 | Q11: 354 | R11: 339 | S11: 324 | T11: 304 | U11: 284 | V11: 280 | W11: 271
A12: Source: Socio-Economic Survey of South Africa 2025, p311; Johannesburg Stock Exchange (JSE), email communication, 4 June 2026
A13: a Foreign and domestic listings.

Sheet The Business Environment

Sheet GEM. Entrep. 22-23
B2: The business environment
B5: Entrepreneurship
B7: Entrepreneurial activity rankings, selected countries, 2022/23
C9: Total Early-Stage Entrepreneurial Activitya | D9: Established Business Ownershipb | E9: Entrepreneurial Employee Activityc
B10: Country | C10: —Ranking out of 46— | E10: —Ranking out of 37 (2022/23)—
B11: Brazil | C11: 13 | D11: 8 | E11: 18
B12: Canada | C12: 11 | D12: 16= | E12: 10
B13: Chile | C13: 4 | D13: 31 | E13: 15
B14: China | C14: 40= | D14: 39= | E14: 15
B15: Colombia | C15: 7= | D15: 44 | E15: —
B16: Croatia | C16: 20= | D16: 32= | E16: 8=
B17: France | C17: 26 | D17: 36 | E17: 21
B18: Germany | C18: 37 | D18: 41 | E18: 17
B19: Greece | C19: 42= | D19: 3 | E19: 28=
B20: Hungary | C20: 31 | D20: 19 | E20: 20
B21: India | C21: 22 | D21: 7 | E21: 35
B22: Iran | C22: 32 | D22: 12 | E22: 24=
B23: Israel | C23: 35 | D23: 43 | E23: 6=
B24: Italy | C24: 36 | D24: 16= | E24: 19
B25: Jordan | C25: 15 | D25: 21 | E25: —
B26: Latvia | C26: 17= | D26: 11 | E26: 13=
B27: Mexico | C27: 14 | D27: 45= | E27: —
B28: Netherlands | C28: 19 | D28: 22 | E28: 16
B29: Poland | C29: 46 | D29: 10 | E29: 33
B30: Russia | C30: — | D30: — | E30: 36=
B31: Slovakia | C31: 27 | D31: 42 | E31: 34
B32: Slovenia | C32: 38 | D32: 13 | E32: 5
B33: South Africa | C33: 24 | D33: 28 | E33: —
B34: Spain | C34: 40= | D34: 24= | E34: —
B35: Sweden | C35: 34 | D35: 30 | E35: 6=
B36: Switzerland | C36: 29 | D36: 29 | E36: 3
B37: Thailand | C37: 7= | D37: 9 | E37: —
B38: Turkey | C38: — | D38: — | E38: —
B39: United Kingdom | C39: 23 | D39: 26 | E39: 13=
B40: United States | C40: 16 | D40: 24= | E40: 12
B41: Venezuela | C41: 9 | D41: 37 | E41: —
B42: Source: Global Entrepreneurship Monitor, 2021/2022 Global Report, Table A2, pp200-201; 2022/2023 Global Report, Table A2, pp212-213
B43: a Proportion of adults aged 18 to 64 who are either a nascent entrepreneur or owner-manager of a new business, i.e. the proportion of the adult population who are either starting or running a new business.
B44: b Proportion of adults aged 18 to 64 who are currently owner-manager of an established business, i.e. who are owning and managing a running business that has paid salaries, wages, or any other payments to the owners for more than 42 months (3.5 years).
B45: c Proportion of adults aged 18 to 64 who, as employees, have been involved in entrepreneurial activities such as developing or launching new goods or services, or setting up a new business unit, a new establishment, or a subsidiary, in the last three years.

Sheet Productivity
B2: Productivity
B4: Real output contributions, main economic sectors (annual percentage contribution), 2020-24
B6: Industries and sectors | C6: 2020 | D6: 2021 | E6: 2022 | F6: 2023 | G6: 2024
C7: —%—
B8: Agriculture, forestry and fishing | C8: 3.2 | D8: 3.2 | E8: 3.2 | F8: 3 | G8: 2.7
B9: Mining and quarrying | C9: 5 | D9: 5.4 | E9: 4.9 | F9: 4.9 | G9: 4.9
B10: Primary sector | C10: 8.2 | D10: 8.6 | E10: 8.1 | F10: 7.9 | G10: 7.6
B11: Manufacturing | C11: 12.6 | D11: 12.9 | E11: 12.6 | F11: 12.5 | G11: 12.4
B12: Electricity, gas and water | C12: 2.6 | D12: 2.5 | E12: 2.4 | F12: 2.3 | G12: 2.4
B13: Construction | C13: 3.7 | D13: 3.4 | E13: 2.8 | F13: 2.7 | G13: 2.6
B14: Secondary sector | C14: 18.9 | D14: 18.9 | E14: 17.8 | F14: 17.5 | G14: 17.4
B15: Wholesale, retail and accommodation | C15: 12.6 | D15: 12.9 | E15: 13.1 | F15: 12.8 | G15: 12.6
B16: Transport, storage and communication | C16: 8.2 | D16: 8.3 | E16: 8.8 | F16: 9.1 | G16: 9
B17: Finance, real estate and business services | C17: 26.2 | D17: 25.7 | E17: 26.1 | F17: 26.3 | G17: 27
B18: Tertiary sector | C18: 47 | D18: 46.9 | E18: 48 | F18: 48.2 | G18: 48.5
B19: Total value added at basic prices (Prod SA) | C19: 74.1 | D19: 74.3 | E19: 73.9 | F19: 73.6 | G19: 73.6
B20: General government services | C20: 9.5 | D20: 9 | E20: 8.9 | F20: 8.8 | G20: 8.8
B21: Personal services | C21: 17.1 | D21: 17.3 | E21: 17.4 | F21: 17.6 | G21: 17.8
B22: Other sector | C22: 26.6 | D22: 26.3 | E22: 26.3 | F22: 26.5 | G22: 26.6
B23: Total value added at basic prices (Stats SA) | C23: 100 | D23: 100 | E23: 100 | F23: 100 | G23: 100
B24: Source: Productivity SA, Productivity Statistics, November 2025, Table 1, p2, accessed 24 March 2026

Sheet Change in productivity
C3: Real output growth, main economic sectors (annual percentage change), 2020-24
C5: Industries and sectors | D5: 2020 | E5: 2021 | F5: 2022 | G5: 2023 | H5: 2024
D6: —%—
C7: Agriculture, forestry and fishing | D7: 17.3 | E7: 5 | F7: 2.2 | G7: -4.6 | H7: -8.7
C8: Mining and quarrying | D8: -12.2 | E8: 12.6 | F8: -6.9 | G8: -0.1 | H8: 0.4
C9: Primary sector | D9: -2.8 | E9: 9.7 | F9: -3.6 | G9: -1.9 | H9: -3
C10: Manufacturing | D10: -12.1 | E10: 6.8 | F10: -0.3 | G10: 0.4 | H10: -0.4
C11: Electricity, gas and water | D11: -5.7 | E11: 2.3 | F11: -2.8 | G11: -4.2 | H11: 3.5
C12: Construction | D12: 3.5 | E12: -3.4 | F12: -17.6 | G12: -2.6 | H12: -2.1
C13: Secondary sector | D13: -8.6 | E13: 4.2 | F13: -3.8 | G13: -0.7 | H13: -0.1
C14: Wholesale, retail and accommodation | D14: -12.2 | E14: 6.7 | F14: 3.7 | G14: -1.6 | H14: -1.2
C15: Transport, storage and communication | D15: -15.5 | E15: 6.2 | F15: 8.3 | G15: 4.2 | H15: -1.2
C16: Finance, real estate and business services | D16: 0.6 | E16: 2.5 | F16: 3.7 | G16: 1.4 | H16: 3.2
C17: Tertiary sector | D17: -6.2 | E17: 4.3 | F17: 4.5 | G17: 1.1 | H17: 1.2
C18: Total value added at basic prices (Prod SA) | D18: -7.4 | E18: 5 | F18: 2.2 | G18: 0.4 | H18: 0.3
C19: General government services | D19: 1 | E19: -0.8 | F19: 0.1 | G19: 0.7 | H19: 0.3
C20: Personal services | D20: -2.1 | E20: 5.6 | F20: 2.8 | G20: 2.1 | H20: 1.2
C21: Other sector | D21: -1 | E21: 3.3 | F21: 1.9 | G21: 1.6 | H21: 0.9
C22: Total value added at basic prices (Stats SA) | D22: -5.8 | E22: 4.5 | F22: 2.1 | G22: 0.7 | H22: 0.5
C23: Source: Productivity SA, Productivity Statistics, November 2025, Table 2, p3, accessed 24 March 2026

Sheet Change graph
D4: Industries & Sectors | E4: 2020 | F4: 2021 | G4: 2022 | H4: 2023 | I4: 2024
D5: Agriculture, forestry & fishing | E5: 17.3 | F5: 5 | G5: 2.2 | H5: -4.6 | I5: -8.7
D6: Mining & quarrying | E6: -12.2 | F6: 12.6 | G6: -6.9 | H6: -0.1 | I6: 0.4
D7: Manufacturing | E7: -12.1 | F7: 6.8 | G7: -0.3 | H7: 0.4 | I7: -0.4
D8: Electricity, gas & water | E8: -5.7 | F8: 2.3 | G8: -2.8 | H8: -4.2 | I8: 3.5
D9: Construction | E9: 3.5 | F9: -3.4 | G9: -17.6 | H9: -2.6 | I9: -2.1
D10: Wholesale, retail & accommodation | E10: -12.2 | F10: 6.7 | G10: 3.7 | H10: -1.6 | I10: -1.2
D11: Transport, storage & communication | E11: -15.5 | F11: 6.2 | G11: 8.3 | H11: 4.2 | I11: -1.2
D12: Finance, real estate & business services | E12: 0.6 | F12: 2.5 | G12: 3.7 | H12: 1.4 | I12: 3.2
D13: General govt services | E13: 1 | F13: -0.8 | G13: 0.1 | H13: 0.7 | I13: 0.3
D14: Personal services | E14: -2.1 | F14: 5.6 | G14: 2.8 | H14: 2.1 | I14: 1.2
D17: Industries & Sectors/Year | E17: Agriculture, forestry & fishing | F17: Mining & quarrying | G17: Manufacturing | H17: Electricity, gas & water | I17: Construction | J17: Wholesale, retail & accommodation | K17: Transport, storage & communication | L17: Finance, real estate & business services | M17: General govt services | N17: Personal services
D18: 2020 | E18: 17.3 | F18: -12.2 | G18: -12.1 | H18: -5.7 | I18: 3.5 | J18: -12.2 | K18: -15.5 | L18: 0.6 | M18: 1 | N18: -2.1
D19: 2021 | E19: 5 | F19: 12.6 | G19: 6.8 | H19: 2.3 | I19: -3.4 | J19: 6.7 | K19: 6.2 | L19: 2.5 | M19: -0.8 | N19: 5.6
D20: 2022 | E20: 2.2 | F20: -6.9 | G20: -0.3 | H20: -2.8 | I20: -17.6 | J20: 3.7 | K20: 8.3 | L20: 3.7 | M20: 0.1 | N20: 2.8
D21: 2023 | E21: -4.6 | F21: -0.1 | G21: 0.4 | H21: -4.2 | I21: -2.6 | J21: -1.6 | K21: 4.2 | L21: 1.4 | M21: 0.7 | N21: 2.1
D22: 2024 | E22: -8.7 | F22: 0.4 | G22: -0.4 | H22: 3.5 | I22: -2.1 | J22: -1.2 | K22: -1.2 | L22: 3.2 | M22: 0.3 | N22: 1.2

Sheet Competitiveness

Sheet World Compet Report. 20-25
B2: Competitiveness
B4: World Competitiveness Report rankings, 2020-25
C6: Country | D6: 2020 ranking (out of 64) | E6: 2021 ranking (out of 64) | F6: 2022 ranking (out of 64) | G6: 2023 ranking (out of 63) | H6: 2024 ranking (out of 67) | I6: 2025 ranking (out of 69)
C7: Argentina | D7: 62 | E7: 63 | F7: 62 | G7: 63 | H7: 66 | I7: 62
C8: Australia | D8: 18 | E8: 22 | F8: 19 | G8: 19 | H8: 13 | I8: 18
C9: Austria | D9: 16 | E9: 19 | F9: 20 | G9: 24 | H9: 26 | I9: 26
C10: Belgium | D10: 25 | E10: 24 | F10: 21 | G10: 13 | H10: 18 | I10: 24
C11: Botswana | D11: — | E11: 61 | F11: 58 | G11: 59 | H11: 55 | I11: 59
C12: Brazil | D12: 56 | E12: 57 | F12: 59 | G12: 60 | H12: 62 | I12: 58
C13: Bulgaria | D13: 48 | E13: 53 | F13: 53 | G13: 57 | H13: 58 | I13: 57
C14: Canada | D14: 8 | E14: 14 | F14: 14 | G14: 15 | H14: 19 | I14: 11
C15: Chile | D15: 38 | E15: 44 | F15: 45 | G15: 44 | H15: 44 | I15: 42
C16: China | D16: 20 | E16: 16 | F16: 17 | G16: 21 | H16: 14 | I16: 16
C17: Colombia | D17: 54 | E17: 56 | F17: 57 | G17: 58 | H17: 57 | I17: 54
C18: Croatia | D18: 60 | E18: 59 | F18: 46 | G18: 50 | H18: 51 | I18: 53
C19: Cyprus | D19: 30 | E19: 33 | F19: 40 | G19: 45 | H19: 43 | I19: 44
C20: Czech Republic | D20: 33 | E20: 34 | F20: 26 | G20: 18 | H20: 29 | I20: 25
C21: Denmark | D21: 2 | E21: 3 | F21: 1 | G21: 1 | H21: 3 | I21: 4
C22: Estonia | D22: 28 | E22: 26 | F22: 22 | G22: 26 | H22: 33 | I22: 33
C23: Finland | D23: 13 | E23: 11 | F23: 8 | G23: 11 | H23: 15 | I23: 14
C24: France | D24: 32 | E24: 29 | F24: 28 | G24: 33 | H24: 31 | I24: 32
C25: Germany | D25: 17 | E25: 15 | F25: 15 | G25: 22 | H25: 24 | I25: 19
C26: Greece | D26: 49 | E26: 46 | F26: 47 | G26: 49 | H26: 47 | I26: 50
C27: Hong Kong | D27: 5 | E27: 7 | F27: 5 | G27: 7 | H27: 5 | I27: 3
C28: Hungary | D28: 47 | E28: 42 | F28: 39 | G28: 46 | H28: 54 | I28: 48
C29: Iceland | D29: 21 | E29: 21 | F29: 16 | G29: 16 | H29: 17 | I29: 15
C30: India | D30: 43 | E30: 43 | F30: 37 | G30: 40 | H30: 39 | I30: 41
C31: Indonesia | D31: 40 | E31: 37 | F31: 44 | G31: 34 | H31: 27 | I31: 40
C32: Ireland | D32: 12 | E32: 13 | F32: 11 | G32: 2 | H32: 4 | I32: 7
C33: Israel | D33: 26 | E33: 27 | F33: 25 | G33: 23 | H33: 22 | I33: —
C34: Italy | D34: 44 | E34: 41 | F34: 41 | G34: 41 | H34: 42 | I34: 43
C35: Japan | D35: 34 | E35: 31 | F35: 34 | G35: 35 | H35: 38 | I35: 35
C36: Jordan | D36: 58 | E36: 49 | F36: 56 | G36: 54 | H36: 48 | I36: 47
C37: Kazakhstan | D37: 42 | E37: 35 | F37: 43 | G37: 37 | H37: 35 | I37: 34
C38: Latvia | D38: 23 | E38: 38 | F38: 35 | G38: 51 | H38: 45 | I38: 38
C39: Lithuania | D39: 41 | E39: 30 | F39: 29 | G39: 32 | H39: 30 | I39: 21
C40: Luxembourg | D40: 31 | E40: 12 | F40: 13 | G40: 20 | H40: 23 | I40: 20
C41: Malaysia | D41: 15 | E41: 25 | F41: 32 | G41: 27 | H41: 34 | I41: 23
C42: Mexico | D42: 27 | E42: 55 | F42: 55 | G42: 56 | H42: 56 | I42: 55
C43: Mongolia | D43: 53 | E43: 60 | F43: 61 | G43: 62 | H43: 61 | I43: 65
C44: Netherlands | D44: 61 | E44: 4 | F44: 6 | G44: 5 | H44: 9 | I44: 10
C45: New Zealand | D45: 4 | E45: 20 | F45: 31 | G45: 31 | H45: 32 | I45: 31
C46: Norway | D46: 22 | E46: 6 | F46: 9 | G46: 14 | H46: 10 | I46: 12
C47: Peru | D47: 7 | E47: 58 | F47: 54 | G47: 55 | H47: 63 | I47: 60
C48: Philippines | D48: 52 | E48: 52 | F48: 48 | G48: 52 | H48: 52 | I48: 51
C49: Poland | D49: 45 | E49: 47 | F49: 50 | G49: 43 | H49: 41 | I49: 52
C50: Portugal | D50: 39 | E50: 36 | F50: 42 | G50: 39 | H50: 36 | I50: 37
C51: Qatar | D51: 37 | E51: 17 | F51: 18 | G51: 12 | H51: 11 | I51: 9
C52: Romania | D52: 14 | E52: 48 | F52: 51 | G52: 48 | H52: 50 | I52: 49
C53: Russia | D53: 51 | E53: 45 | F53: — | G53: — | H53: — | I53: —
C54: Saudi Arabia | D54: 50 | E54: 32 | F54: 24 | G54: 17 | H54: 16 | I54: 17
C55: Singapore | D55: 24 | E55: 5 | F55: 3 | G55: 4 | H55: 1 | I55: 2
C56: Slovakia | D56: 1 | E56: 50 | F56: 49 | G56: 53 | H56: 59 | I56: 63
C57: Slovenia | D57: 57 | E57: 40 | F57: 38 | G57: 42 | H57: 46 | I57: 46
C58: South Africa | D58: 35 | E58: 62 | F58: 60 | G58: 61 | H58: 60 | I58: 64
C59: Spain | D59: 36 | E59: 39 | F59: 36 | G59: 36 | H59: 40 | I59: 39
C60: Sweden | D60: 6 | E60: 2 | F60: 4 | G60: 8 | H60: 6 | I60: 8
C61: Switzerland | D61: 3 | E61: 1 | F61: 2 | G61: 3 | H61: 2 | I61: 1
C62: Taiwan | D62: 11 | E62: 8 | F62: 7 | G62: 6 | H62: 8 | I62: 6
C63: Thailand | D63: 29 | E63: 28 | F63: 33 | G63: 30 | H63: 25 | I63: 30
C64: Turkey | D64: 46 | E64: 51 | F64: 52 | G64: 47 | H64: 53 | I64: 66
C65: United Arab Emirates | D65: 55 | E65: 9 | F65: 12 | G65: 10 | H65: 7 | I65: 5
C66: United Kingdom | D66: 19 | E66: 18 | F66: 23 | G66: 29 | H66: 28 | I66: 29
C67: United States | D67: 10 | E67: 10 | F67: 10 | G67: 9 | H67: 12 | I67: 13
C68: Venezuela | D68: 63 | E68: 64 | F68: 63 | G68: 64 | H68: 67 | I68: 69
B69: Source: Institute for Management Development (IMD), World Competitiveness Ranking 2025, pp54-55, accessed 15 May 2026
B70: The World Competitiveness Yearbook rates an economy’s ability to create a competitive business environment based on statistical information and surveys. It ranks countries according to 312 criteria in four categories — government efficiency; business efficiency; economic showing; and infrastructure.

Sheet Business confidence

Sheet Business confidence 2015-25
A2: Business confidence
A4: The SACCI Business Confidence Indexab, 2015-25
A7: Month | B7: 2015 | C7: 2016 | D7: 2017 | E7: 2018 | F7: 2019 | G7: 2020 | H7: 2021 | I7: 2022 | J7: 2023 | K7: 2024 | L7: 2025
A8: January | B8: 119.5 | C8: 107 | D8: 112.9 | E8: 115.3 | F8: 109.9 | G8: 106.6 | H8: 109.2 | I8: 108.8 | J8: 112.9 | K8: 112.3 | L8: 120
A9: February | B9: 124.1 | C9: 107.1 | D9: 110.4 | E9: 114.3 | F9: 108 | G9: 107.2 | H9: 109 | I9: 112 | J9: 111.9 | K9: 114.7 | L9: 125.8
A10: March | B10: 119.2 | C10: 108.6 | D10: 108.4 | E10: 112.8 | F10: 106.1 | G10: 103.9 | H10: 108.7 | I10: 110.5 | J10: 111.3 | K10: 114.7 | L10: 123.5
A11: April | B11: 120.3 | C11: 110.4 | D11: 109.7 | E11: 111 | F11: 108.3 | G11: 89.9 | H11: 109.5 | I11: 108.3 | J11: 107.1 | K11: 108.9 | L11: 114.9
A12: May | B12: 116.2 | C12: 106.1 | D12: 107.7 | E12: 108.7 | F12: 107.5 | G12: 81.1 | H12: 112.1 | I12: 103.2 | J12: 106.9 | K12: 107.8 | L12: 115.8
A13: June | B13: 113.2 | C13: 109.9 | D13: 109.7 | E13: 108.3 | F13: 107.9 | G13: 94.1 | H13: 111.2 | I13: 108.5 | J13: 108.8 | K13: 109 | L13: 113.2
A14: July | B14: 117.6 | C14: 111 | D14: 110.2 | E14: 109.5 | F14: 106.4 | G14: 95.7 | H14: 107.7 | I14: 110.3 | J14: 107.3 | K14: 109.1 | L14: 116.7
A15: August | B15: 112.8 | C15: 107.4 | D15: 103.6 | E15: 104.6 | F15: 103 | G15: 99.2 | H15: 106.2 | I15: 105.6 | J15: 108.6 | K15: 111.5 | L15: 120
A16: September | B16: 109.2 | C16: 104.4 | D16: 107.5 | E16: 107.9 | F16: 106.8 | G16: 99.1 | H16: 105.2 | I16: 110.9 | J16: 108.2 | K16: 110.2 | L16: 121.1
A17: October | B17: 118.2 | C17: 107.5 | D17: 107.4 | E17: 110.8 | F17: 106 | G17: 106.4 | H17: 109.7 | I17: 109.4 | J17: 108.6 | K17: 114.2 | L17: 123.8
A18: November | B18: 110.6 | C18: 108.6 | D18: 109.9 | E18: 111.1 | F18: 107.2 | G18: 108 | H18: 107.3 | I18: 110.9 | J18: 111.5 | K18: 118.1 | L18: 132.3
A19: December | B19: 106.5 | C19: 108.4 | D19: 111.4 | E19: 110.1 | F19: 107.6 | G19: 109 | H19: 106.4 | I19: 117.3 | J19: 112.1 | K19: 121 | L19: 133.2
A20: Average | B20: 115.6 | C20: 108 | D20: 109.1 | E20: 110.4 | F20: 107.1 | G20: 100 | H20: 108.5 | I20: =AVERAGE(I8:I19) -> 109.6416667 | J20: 109.6 | K20: 112.6 | L20: 121.7
A21: Source: SACCI Business Confidence Index, accessed 14 May 2026
A22: a The Sacci compiles a monthly business confidence index which reflects the business climate and what businesses are doing and experiencing. It is a composite weighted index where the economic and market indicators are used to compile thirteen sub-indices. These include an average monthly exchange rate of the Rand against the Dollar, the Euro, the Pound, as well as the volatility of the Rand. Other sub-indices include: consumer inflation; the real predominant prime overdraft rate, retail sales volumes, merchandise import and export volumes; new vehicle sales, utility municipal services; volume of manufacturing production, real value of private sector buildings passed, all share price index of the Johannesburg Stock Exchange (JSE); and the average weighted dollar gold and platinum price.
A23: b Base year 2020, value = 100.

Sheet Mining attractiveness

Sheet Mining investment.25
E2: Mining attractiveness
E4: Attractiveness for mining investment, 2025
B6: Country/subnational division | C6: 2020 Ranking (out of 77) | E6: Country/subnational division | F6: Ranking (out of 68)
B7: New Brunswick* (Canada, North America) | C7: 32 | E7: Nevada | F7: 1
B8: Colorado (United States, North America) | C8: 13 | E8: Ontario | F8: 2
B9: Turkey* (Europe/Asia) | C9: 14 | E9: Saskatchewan | F9: 3
B10: Botswana* (Southern Africa) | C10: 11 | E10: South Australia | F10: 4
B11: Mali* (West Africa) | C11: 21 | E11: Arizona | F11: 5
B12: Ireland (North Western Europe) | C12: 12 | E12: Western Australia | F12: 6
B13: British Columbia (Canada, North America) | C13: 17 | E13: Botswana | F13: 7
B14: Chile (South America) | C14: 30 | E14: Norway | F14: 8
B15: Portugal* (Southern Europe) | C15: 29 | E15: Sweden | F15: 9
B16: Queensland (Australia) | C16: 16 | E16: Saudi Arabia | F16: 10
B17: New South Wales (Australia) | C17: 27 | E17: Finland | F17: 11
B18: Arizona (United States, North America) | C18: 2 | E18: Alaska | F18: 12
B19: Idaho (United States, North America) | C19: 9 | E19: Queensland | F19: 13
B20: Papua New Guinea* (Oceania) | C20: 65 | E20: Newfoundland & Labrador | F20: 14
B21: Finland (Northern Europe) | C21: 10 | E21: Morocco | F21: 15
B22: Saskatchewan (Canada, North America) | C22: 3 | E22: New Mexico | F22: 16
E23: Tasmania | F23: 17
B24: Rio Negro (Argentina, South America) | C24: 64 | E24: San Juan | F24: 18
B25: Colombia (South America) | C25: 28 | E25: Brazil | F25: 19
B26: Dominican Republic* (Central America) | C26: 59 | E26: British Columbia | F26: 20
B27: Chubut (Argentina, South America) | C27: 76 | E27: Santa Cruz | F27: 21
B28: Salta (Argentina, South America) | C28: 23 | E28: Quebec | F28: 22
B29: Zimbabwe* (Southern Africa) | C29: 70 | E29: Manitoba | F29: 23
B30: Quebec (Canada, North America) | C30: 6 | E30: Alberta | F30: 24
B31: Newfoundland & Labrador (Canada, North America) | C31: 8 | E31: Zambia | F31: 25
B32: Alaska (United States, North America) | C32: 5 | E32: Montana | F32: 26
B33: Ontario (Canada, North America) | C33: 20 | E33: Yukon | F33: 27
B34: Alberta (Canada, North America) | C34: 22 | E34: New South Wales | F34: 28
B35: South Australia (Australia) | C35: 7 | E35: Nunavut | F35: 29
B36: Nevada (United States, North America) | C36: 1 | E36: Spain | F36: 30
B37: New Mexico (United States, North America) | C37: 15 | E37: Ireland | F37: 31
B38: Yukon (Canada, North America) | C38: 18 | E38: Chile | F38: 32
B39: Western Australia (Australia) | C39: 4 | E39: Northern Territory | F39: 33
B40: Northern Territory (Australia) | C40: 19 | E40: Tanzania | F40: 34
B41: Russia (Eastern Europe, Northern Asia) | C41: 24 | E41: Indonesia | F41: 35
B42: Utah (United States, North America) | C42: 25 | E42: Mexico | F42: 36
B43: Wyoming* (United States, North America) | C43: 26 | E43: New Brunswick | F43: 37
B44: Ghana (West Africa) | C44: 31 | E44: Utah | F44: 38
B45: Montana (United States, North America) | C45: 33 | E45: Idaho | F45: 39
B46: Peru (South America) | C46: 34 | E46: New Zealand | F46: 40
B47: Northern Ireland* (Europe) | C47: 35 | E47: Peru | F47: 41
B48: Sweden (Northern Europe) | C48: 36 | E48: Colombia | F48: 42
B49: Manitoba (Canada, North America) | C49: 37 | E49: Colorado | F49: 43
B50: Brazil (South America) | C50: 38 | E50: Papua New Guinea | F50: 44
B51: Nunavut (Canada, North America) | C51: 39 | E51: Northwest Territories | F51: 45
B52: Santa Cruz (Argentina, North America) | C52: 40 | E52: Portugal | F52: 46
B53: Greenland* (Northern Europe) | C53: 41 | E53: Ivory Coast | F53: 47
B54: Mexico (North America) | C54: 42 | E54: Mongolia | F54: 48
B55: Guinea* (West Africa) | C55: 43 | E55: Victoria | F55: 49
B56: Catamarca (Argentina, South America) | C56: 44 | E56: Democratic Republic of Congo (DRC) | F56: 50
B57: Washington* (United States, North America) | C57: 45 | E57: Namibia | F57: 51
B58: Northwest Territories (Canada, North America) | C58: 46 | E58: Kazakhstan | F58: 52
B59: Jujuy (Argentina, South America) | C59: 47 | E59: Ghana | F59: 53
B60: Mauritania (Northwest Africa) | C60: 48 | E60: Nova Scotia | F60: 54
B61: San Juan (Argentina, South America) | C61: 49 | E61: Angola | F61: 55
B62: Mozambique (Southern Africa) | C62: 50 | E62: Mendoza | F62: 56
B63: Zambia* (Southern Africa) | C63: 51 | E63: South Africa | F63: 57
B64: Namibia* (Southern Africa) | C64: 52 | E64: Ecuador | F64: 58
B65: Burkina Faso (West Africa) | C65: 53 | E65: Guinea (Conakry) | F65: 59
B66: Norway* (Northern Europe) | C66: 54 | E66: Northern Ireland | F66: 60
B67: Minnesota* (United States, North America) | C67: 55 | E67: Bolivia | F67: 61
B68: Victoria (Australia) | C68: 56 | E68: Neuquen | F68: 62
E69: Chubut | F69: 63
E70: Mali | F70: 64
E71: Philippines | F71: 65
E72: Egypt | F72: 66
E73: Burkina Faso | F73: 67
E74: China | F74: 68
E75: Source: Fraser Institute, Annual Survey of Mining Companies, February 2026, Figure 3, p11

Sheet Economic Freedom

Sheet Heritage Foundation.SC.13_26
A2: Economic freedom
A4: Economic freedom of the world (Heritage Foundationa), selected countries, 2013-26
A6: Country name | B6: 2013 ranking (out of 177) | C6: 2020 (out of 186) | D6: 2022 ranking (out of 165) | E6: 2024 ranking (out of 177) | F6: 2026 ranking (out of 176) | G6: 2013 | H6: 2020 | I6: 2022 | J6: 2024 | K6: 2026
G8: —Score out of 100—
A9: Australia | B9: 3 | C9: 4 | D9: 12 | E9: 13 | F9: 4 | G9: 82.6 | H9: 82.6 | I9: 78 | J9: 76.2 | K9: 80.1
A10: Botswana | B10: 30 | C10: 40 | D10: 61 | E10: 36 | F10: 48 | G10: 70.6 | H10: 69.6 | I10: 65 | J10: 68 | K10: 67.7
A11: Brazil | B11: 100 | C11: 144 | D11: 133 | E11: 124 | F11: 134 | G11: 57.7 | H11: 53.7 | I11: 53 | J11: 53.2 | K11: 52.4
A12: Chile | B12: 7 | C12: 15 | D12: 20 | E12: 21 | F12: 17 | G12: 79 | H12: 76.8 | I12: 74 | J12: 71.4 | K12: 74.3
A13: China | B13: 136 | C13: 103 | D13: 158 | E13: 151 | F13: 154 | G13: 51.9 | H13: 59.5 | I13: 48 | J13: 48.5 | K13: 48.3
A14: Denmark | B14: 9 | C14: 8 | D14: 10 | E14: 7 | F14: 7 | G14: 76.1 | H14: 78.3 | I14: 78 | J14: 77.8 | K14: 79
A15: Egypt | B15: 125 | C15: 142 | D15: 152 | E15: 146 | F15: 146 | G15: 54.8 | H15: 54 | I15: 49 | J15: 49.7 | K15: 50.3
A16: France | B16: 62 | C16: 64 | D16: 52 | E16: 62 | F16: 65 | G16: 64 | H16: 66 | I16: 66 | J16: 62.5 | K16: 64.6
A17: Germany | B17: 19 | C17: 27 | D17: 16 | E17: 18 | F17: 24 | G17: 72.8 | H17: 73.5 | I17: 76 | J17: 72.1 | K17: 71.7
A18: Ghana | B18: 77 | C18: 104 | D18: 89 | E18: 104 | F18: 107 | G18: 61.3 | H18: 59.4 | I18: 60 | J18: 55.8 | K18: 57.3
A19: Greece | B19: 117 | C19: 100 | D19: 77 | E19: 113 | F19: 75 | G19: 55.4 | H19: 59.9 | I19: 62 | J19: 55.1 | K19: 63.2
A20: Hong Kong | B20: 1 | C20: 2 | D20: — | E20: — | F20: — | G20: 89.3 | H20: 89.1 | I20: — | J20: — | K20: —
A21: India | B21: 119 | C21: 120 | D21: 131 | E21: 126 | F21: 132 | G21: 55.2 | H21: 56.5 | I21: 54 | J21: 52.9 | K21: 52.5
A22: Indonesia | B22: 108 | C22: 54 | D22: 63 | E22: 53 | F22: 60 | G22: 56.9 | H22: 67.2 | I22: 64 | J22: 63.5 | K22: 65.1
A23: Ireland | B23: 11 | C23: 6 | D23: 3 | E23: 3 | F23: 3 | G23: 75.7 | H23: 80.9 | I23: 82 | J23: 82.6 | K23: 83.3
A24: Israel | B24: 51 | C24: 26 | D24: 43 | E24: 26 | F24: 41 | G24: 66.9 | H24: 74 | I24: 68 | J24: 70.1 | K24: 68.4
A25: Italy | B25: 83 | C25: 74 | D25: 57 | E25: 81 | F25: 73 | G25: 60.6 | H25: 63.8 | I25: 65 | J25: 60.1 | K25: 63.3
A26: Japan | B26: 24 | C26: 30 | D26: 35 | E26: 38 | F26: 30 | G26: 71.8 | H26: 73.3 | I26: 70 | J26: 67.5 | K26: 70.3
A27: Kazakhstan | B27: 68 | C27: 39 | D27: 64 | E27: 66 | F27: 68 | G27: 63 | H27: 69.6 | I27: 64 | J27: 62 | K27: 64.2
A28: Lithuania | B28: 22 | C28: 16 | D28: 17 | E28: 15 | F28: 15 | G28: 72.1 | H28: 76.7 | I28: 76 | J28: 72.9 | K28: 75.3
A29: Mexico | B29: 50 | C29: 67 | D29: 67 | E29: 68 | F29: 92 | G29: 67 | H29: 66 | I29: 64 | J29: 62 | K29: 59.8
A30: Mozambique | B30: 123 | C30: 160 | D30: 142 | E30: 141 | F30: 149 | G30: 55 | H30: 50.5 | I30: 51 | J30: 50.7 | K30: 49.6
A31: Nigeria | B31: 120 | C31: 116 | D31: 124 | E31: 125 | F31: 119 | G31: 55.1 | H31: 57.2 | I31: 54 | J31: 53.1 | K31: 54.8
A32: Pakistan | B32: 121 | C32: 135 | D32: 153 | E32: 147 | F32: 152 | G32: 55.1 | H32: 54.8 | I32: 49 | J32: 49.5 | K32: 48.9
A33: Philippines | B33: 97 | C33: 70 | D33: 80 | E33: 88 | F33: 77 | G33: 58.2 | H33: 64.5 | I33: 61 | J33: — | K33: 62.9
A34: Poland | B34: 57 | C34: 46 | D34: 39 | E34: 42 | F34: 40 | G34: 66 | H34: 69.1 | I34: 69 | J34: 66 | K34: 68.5
A35: Russia | B35: 139 | C35: 94 | D35: 113 | E35: 131 | F35: 145 | G35: 51.1 | H35: 61 | I35: 56 | J35: 52 | K35: 50.3
A36: Saudi Arabia | B36: 82 | C36: 83 | D36: 118 | E36: 69 | F36: 59 | G36: 61 | H36: 62.4 | I36: 56 | J36: — | K36: 65.4
A37: South Africa | B37: 74 | C37: 106 | D37: 112 | E37: 111 | F37: 100 | G37: 61.8 | H37: 58.8 | I37: 56 | J37: 55.3 | K37: 58.6
A38: Spain | B38: 46 | C38: 58 | D38: 41 | E38: 55 | F38: 53 | G38: 68 | H38: 66.9 | I38: 68 | J38: 63.3 | K38: 66.8
A39: Switzerland | B39: 5 | C39: 5 | D39: 2 | E39: 2 | F39: 2 | G39: 81 | H39: 82 | I39: 84 | J39: 83 | K39: 83.7
A40: Turkey | B40: 69 | C40: 71 | D40: 107 | E40: 102 | F40: 117 | G40: 62.9 | H40: 64.4 | I40: 57 | J40: 56.2 | K40: 55
A41: Uganda | B41: 79 | C41: 102 | D41: 127 | E41: 140 | F41: 133 | G41: 61.1 | H41: 59.5 | I41: 54 | J41: 50.7 | K41: 52.4
A42: United Kingdom | B42: 14 | C42: 7 | D42: 24 | E42: 30 | F42: 29 | G42: 74.8 | H42: 79.3 | I42: 73 | J42: 68.6 | K42: 70.4
A43: United States | B43: 10 | C43: 17 | D43: 25 | E43: 25 | F43: 22 | G43: 76 | H43: 76.6 | I43: 72 | J43: 70.1 | K43: 72.8
A44: Venezuela | B44: 174 | C44: 179 | D44: 176 | E44: 176 | F44: 174 | G44: 36 | H44: 25.2 | I44: 25 | J44: 28.1 | K44: 27.3
A45: Source: The Heritage Foundation, Index of Economic Freedom, 2013-2026, p2
A46: a The index ranks 180 countries and is scored out of 100, with 10 components. These are: business freedom; trade freedom; fiscal freedom; government size; monetary freedom; investment freedom; financial freedom; property rights; freedom from corruption; and labour freedom.
A50: Scores:
A51: • 80–100 Free.
A52: • 70–79.9: Mostly Free.
A53: • 60–69.9: Moderately Free.
A54: • 50–59.9: Mostly Unfree.
A55: • 0–49.9: Repressed.

Sheet Heritage Foundation.EM.13_26
A2: Economic freedom of the world (Heritage Foundationa), emerging markets, 2013-26
A4: Country | B4: 2013 ranking (out of 177) | C4: 2020 (out of 186) | D4: 2022 ranking (out of 165) | E4: 2024 ranking (out of 177) | F4: 2026 ranking (out of 176) | G4: 2013 | H4: 2020 | I4: 2022 | J4: 2024 | K4: 2026
G6: —Score out of 100—
A7: Brazil | B7: 100 | C7: 144 | D7: 133 | E7: 124 | F7: 134 | G7: 57.7 | H7: 53.7 | I7: 53 | J7: 53.2 | K7: 52.4
A8: Bulgaria | B8: 60 | C8: 36 | D8: 29 | E8: 31 | F8: 38 | G8: 65 | H8: 70.2 | I8: 71 | J8: 68.5 | K8: 68.9
A9: Chile | B9: 7 | C9: 15 | D9: 20 | E9: 21 | F9: 17 | G9: 79 | H9: 76.8 | I9: 74 | J9: 71.4 | K9: 74.3
A10: China | B10: 136 | C10: 103 | D10: 158 | E10: 151 | F10: 154 | G10: 51.9 | H10: 59.3 | I10: 48 | J10: 48.5 | K10: 48.3
A11: Colombia | B11: 37 | C11: 45 | D11: 60 | E11: 84 | F11: 91 | G11: 69.6 | H11: 69.4 | I11: 65 | J11: 59.2 | K11: 59.8
A12: Czech Republic | B12: 29 | C12: 23 | D12: 21 | E12: 24 | F12: 20 | G12: 70.9 | H12: 74.8 | I12: 74 | J12: 70.2 | K12: 73.2
A13: Egypt | B13: 125 | C13: 142 | D13: 152 | E13: 146 | F13: 146 | G13: 54.8 | H13: 54 | I13: 49 | J13: 49.7 | K13: 50.3
A14: Estonia | B14: 13 | C14: 10 | D14: 7 | E14: 8 | F14: 9 | G14: 75.3 | H14: 77.7 | I14: 80 | J14: 77.8 | K14: 78.7
A15: Greece | B15: 117 | C15: 100 | D15: 77 | E15: 113 | F15: 75 | G15: 55.4 | H15: 59.9 | I15: 62 | J15: 55.1 | K15: 63.2
A16: Hungary | B16: 48 | C16: 62 | D16: 48 | E16: 72 | F16: 79 | G16: 67.3 | H16: 66 | I16: 67 | J16: 61.2 | K16: 62.5
A17: India | B17: 119 | C17: 120 | D17: 131 | E17: 126 | F17: 132 | G17: 55.2 | H17: 56.5 | I17: 54 | J17: 52.9 | K17: 52.5
A18: Indonesia | B18: 108 | C18: 54 | D18: 63 | E18: 53 | F18: 60 | G18: 56.9 | H18: 67.2 | I18: 64 | J18: 63.5 | K18: 65.1
A19: Jordan | B19: 33 | C19: 66 | D19: 87 | E19: 92 | F19: 94 | G19: 70.4 | H19: 66 | I19: 60 | J19: 58.3 | K19: 59.3
A20: Kuwait | B20: 66 | C20: 79 | D20: 101 | E20: 90 | F20: 90 | G20: 63.1 | H20: 63.2 | I20: 58 | J20: 58.5 | K20: 59.9
A21: Latvia | B21: 55 | C21: 32 | D21: 18 | E21: 20 | F21: 25 | G21: 66.5 | H21: 71.9 | I21: 75 | J21: 71.5 | K21: 71.6
A22: Lithuania | B22: 22 | C22: 16 | D22: 17 | E22: 15 | F22: 15 | G22: 72.1 | H22: 76.7 | I22: 76 | J22: 72.9 | K22: 75.3
A23: Malaysia | B23: 56 | C23: 24 | D23: 42 | E23: 45 | F23: 45 | G23: 66.1 | H23: 74.7 | I23: 64 | J23: 65.7 | K23: 68
A24: Mauritius | B24: 8 | C24: 21 | D24: 30 | E24: 19 | F24: 21 | G24: 76.9 | H24: 74.9 | I24: 71 | J24: 71.5 | K24: 73
A25: Mexico | B25: 50 | C25: 67 | D25: 67 | E25: 68 | F25: 92 | G25: 67 | H25: 66 | I25: 64 | J25: 62 | K25: 59.8
A26: Morocco | B26: 90 | C26: 78 | D26: 97 | E26: 101 | F26: 83 | G26: 59.6 | H26: 63.3 | I26: 59 | J26: 56.8 | K26: 61.8
A27: Oman | B27: 45 | C27: 75 | D27: 108 | E27: 56 | F27: 39 | G27: 68.1 | H27: 63.6 | I27: 57 | J27: 62.9 | K27: 68.5
A28: Pakistan | B28: 121 | C28: 135 | D28: 153 | E28: 147 | F28: 152 | G28: 55.1 | H28: 54.8 | I28: 49 | J28: 49.5 | K28: 48.9
A29: Peru | B29: 44 | C29: 51 | D29: 51 | E29: 49 | F29: 56 | G29: 68.2 | H29: 67.9 | I29: 67 | J29: 64.8 | K29: 66.3
A30: Philippines | B30: 97 | C30: 70 | D30: 80 | E30: 88 | F30: 77 | G30: 58.2 | H30: 64.5 | I30: 61 | J30: — | K30: 62.9
A31: Poland | B31: 57 | C31: 46 | D31: 39 | E31: 42 | F31: 40 | G31: 66 | H31: 69.1 | I31: 69 | J31: 66 | K31: 68.5
A32: Qatar | B32: 27 | C32: 31 | D32: 44 | E32: 28 | F32: 31 | G32: 71.3 | H32: 72.3 | I32: 68 | J32: 68.8 | K32: 70.2
A33: Romania | B33: 59 | C33: 38 | D33: 47 | E33: 51 | F33: 58 | G33: 65.1 | H33: 69.7 | I33: 67 | J33: 64.4 | K33: 65.4
A34: Russia | B34: 139 | C34: 94 | D34: 113 | E34: 131 | F34: 145 | G34: 51.1 | H34: 61 | I34: 56 | J34: 52 | K34: 50.3
A35: Slovakia | B35: 42 | C35: 60 | D35: 36 | E35: 35 | F35: 47 | G35: 68.7 | H35: 66.8 | I35: 70 | J35: 68.1 | K35: 67.7
A36: South Africa | B36: 74 | C36: 106 | D36: 112 | E36: 111 | F36: 100 | G36: 61.8 | H36: 58.8 | I36: 56 | J36: 55.3 | K36: 58.6
A37: Sri Lanka | B37: 81 | C37: 112 | D37: 132 | E37: 149 | F37: 144 | G37: 60.7 | H37: 57.4 | I37: 53 | J37: 49.2 | K37: 50.3
A38: Thailand | B38: 61 | C38: 43 | D38: 70 | E38: 87 | F38: 82 | G38: 64.1 | H38: 69.4 | I38: 63 | J38: 59 | K38: 62.2
A39: Turkey | B39: 69 | C39: 71 | D39: 107 | E39: 102 | F39: 117 | G39: 62.9 | H39: 64.4 | I39: 57 | J39: 56.2 | K39: 55
A40: United Arab Emirates | B40: 28 | C40: 18 | D40: 33 | E40: 22 | F40: 23 | G40: 71.1 | H40: 76.2 | I40: 70 | J40: 71.1 | K40: 71.9
A41: Vietnam | B41: 140 | C41: 105 | D41: 84 | E41: 59 | F41: 66 | G41: 51 | H41: 58.8 | I41: 61 | J41: 62.8 | K41: 64.4
A42: Source: The Heritage Foundation, Index of Economic Freedom, 2013-2026, p2
A43: a The index ranks 180 countries and is scored out of 100, with 10 components. These are: business freedom; trade freedom; fiscal freedom; government size; monetary freedom; investment freedom; financial freedom; property rights; freedom from corruption; and labour freedom.
A47: Scores:
A48: • 80–100 Free.
A49: • 70–79.9: Mostly Free.
A50: • 60–69.9: Moderately Free.
A51: • 50–59.9: Mostly Unfree.
A52: • 0–49.9: Repressed.

Sheet Heritage Foundation.SAC.13_26
A2: Economic freedom of the world (Heritage Foundationa), selected African countries, 2013-26
A4: Country | B4: 2013 ranking (out of 177) | C4: 2020 (out of 186) | D4: 2022 ranking (out of 165) | E4: 2024 ranking (out of 177) | F4: 2026 ranking (out of 176) | G4: 2013 | H4: 2020 | I4: 2022 | J4: 2024 | K4: 2026
G6: —Score out of 100—
A7: Algeria | B7: 145 | C7: 169 | D7: 167 | E7: 164 | F7: 163 | G7: 49.6 | H7: 46.9 | I7: 46 | J7: 43.9 | K7: 45.8
A8: Angola | B8: 158 | C8: 154 | D8: 139 | E8: 118 | F8: 121 | G8: 47.3 | H8: 52.2 | I8: 53 | J8: 54.3 | K8: 54.4
A9: Botswana | B9: 30 | C9: 40 | D9: 61 | E9: 36 | F9: 48 | G9: 70.6 | H9: 69.6 | I9: 65 | J9: 68 | K9: 67.7
A10: Burundi | B10: 148 | C10: 166 | D10: 172 | E10: 171 | F10: 170 | G10: 49 | H10: 49 | I10: 39 | J10: 38.4 | K10: 40.2
A11: Cameroon | B11: 133 | C11: 145 | D11: 136 | E11: 121 | F11: 136 | G11: 52.3 | H11: 53.6 | I11: 53 | J11: 53.6 | K11: 52
A12: Central African Republic | B12: 142 | C12: 159 | D12: 168 | E12: 168 | F12: 167 | G12: 50.4 | H12: 50.7 | I12: 46 | J12: 41.3 | K12: 43.1
A13: Congo (DRC) | B13: 171 | C13: 162 | D13: 160 | E13: 160 | F13: 161 | G13: 39.6 | H13: 49.5 | I13: 48 | J13: 47.6 | K13: 47
A14: Congo (Republic) | B14: 167 | C14: 176 | D14: 155 | E14: 157 | F14: 153 | G14: 43.5 | H14: 41.8 | I14: 49 | J14: 47.8 | K14: 48.6
A15: Egypt | B15: 125 | C15: 142 | D15: 152 | E15: 146 | F15: 146 | G15: 54.8 | H15: 54 | I15: 49 | J15: 49.7 | K15: 50.3
A16: Eritrea | B16: 173 | C16: 177 | D16: 171 | E16: 170 | F16: 171 | G16: 36.3 | H16: 38.5 | I16: 40 | J16: 39.5 | K16: 39.6
A17: Eswatini | B17: 104 | C17: 131 | D17: 141 | E17: 107 | F17: 104 | G17: 57.2 | H17: 55.3 | I17: 51 | J17: 55.6 | K17: 57.5
A18: Ethiopia | B18: 146 | C18: 146 | D18: 150 | E18: 156 | F18: 155 | G18: 49.4 | H18: 53.6 | I18: 50 | J18: 47.9 | K18: 48.1
A19: Ghana | B19: 77 | C19: 104 | D19: 89 | E19: 104 | F19: 107 | G19: 61.3 | H19: 59.4 | I19: 60 | J19: 55.8 | K19: 57.3
A20: Ivory Coast | B20: 126 | C20: 101 | D20: 76 | E20: 91 | F20: 102 | G20: 54.1 | H20: 59.7 | I20: 62 | J20: 58.4 | K20: 58.1
A21: Kenya | B21: 114 | C21: 132 | D21: 138 | E21: 120 | F21: 116 | G21: 55.9 | H21: 55.3 | I21: 53 | J21: 53.6 | K21: 55.5
A22: Lesotho | B22: 155 | C22: 138 | D22: 157 | E22: 133 | F22: 118 | G22: 47.9 | H22: 54.5 | I22: 48 | J22: 51.9 | K22: 54.9
A23: Liberia | B23: 147 | C23: 165 | D23: 159 | E23: 144 | F23: 147 | G23: 49.3 | H23: 49 | I23: 48 | J23: 49.9 | K23: 49.8
A24: Madagascar | B24: 75 | C24: 99 | D24: 98 | E24: 97 | F24: 108 | G24: 62.4 | H24: 60.5 | I24: 59 | J24: 57.3 | K24: 57
A25: Malawi | B25: 118 | C25: 152 | D25: 134 | E25: 129 | F25: 143 | G25: 55.4 | H25: 52.8 | I25: 53 | J25: 52.1 | K25: 50.7
A26: Mauritius | B26: 8 | C26: 21 | D26: 30 | E26: 19 | F26: 21 | G26: 76.9 | H26: 74.9 | I26: 71 | J26: 71.5 | K26: 73
A27: Morocco | B27: 90 | C27: 78 | D27: 97 | E27: 101 | F27: 83 | G27: 59.6 | H27: 63.3 | I27: 59 | J27: 56.8 | K27: 61.8
A28: Mozambique | B28: 123 | C28: 160 | D28: 142 | E28: 141 | F28: 149 | G28: 55 | H28: 50.5 | I28: 51 | J28: 50.7 | K28: 49.6
A29: Namibia | B29: 84 | C29: 96 | D29: 95 | E29: 96 | F29: 87 | G29: 60.3 | H29: 60.9 | I29: 59 | J29: 57.5 | K29: 60.2
A30: Nigeria | B30: 120 | C30: 116 | D30: 124 | E30: 125 | F30: 119 | G30: 55.1 | H30: 57.2 | I30: 54 | J30: 53.1 | K30: 54.8
A31: Rwanda | B31: 63 | C31: 33 | D31: 105 | E31: 135 | F31: 110 | G31: 64.1 | H31: 70.9 | I31: 57 | J31: 51.6 | K31: 56.5
A32: Senegal | B32: 116 | C32: 110 | D32: 88 | E32: 109 | F32: 126 | G32: 55.5 | H32: 58 | I32: 60 | J32: 55.4 | K32: 53.2
A33: South Africa | B33: 74 | C33: 106 | D33: 112 | E33: 111 | F33: 100 | G33: 61.8 | H33: 58.8 | I33: 56 | J33: 55.3 | K33: 58.6
A34: Tanzania | B34: 98 | C34: 89 | D34: 93 | E34: 86 | F34: 96 | G34: 93 | H34: 61.7 | I34: 60 | J34: 59.1 | K34: 59
A35: Tunisia | B35: 107 | C35: 128 | D35: 128 | E35: 150 | F35: 156 | G35: 57 | H35: 55.8 | I35: 54 | J35: 48.8 | K35: 48.1
A36: Uganda | B36: 79 | C36: 102 | D36: 127 | E36: 140 | F36: 133 | G36: 61.1 | H36: 59.5 | I36: 54 | J36: 50.7 | K36: 52.4
A37: Zambia | B37: 93 | C37: 147 | D37: 154 | E37: 152 | F37: 137 | G37: 58.7 | H37: 53.5 | I37: 49 | J37: 48.4 | K37: 51.9
A38: Zimbabwe | B38: 175 | C38: 174 | D38: 173 | E38: 172 | F38: 172 | G38: 28.6 | H38: 43.1 | I38: 33 | J38: 38.2 | K38: 38.2
A39: Source: The Heritage Foundation, Index of Economic Freedom, 2013-2026, p2
A40: a The index ranks 180 countries and is scored out of 100, with 10 components. These are: business freedom; trade freedom; fiscal freedom; government size; monetary freedom; investment freedom; financial freedom; property rights; freedom from corruption; and labour freedom.
A44: Scores:
A45: • 80–100 Free.
A46: • 70–79.9: Mostly Free.
A47: • 60–69.9: Moderately Free.
A48: • 50–59.9: Mostly Unfree.
A49: • 0–49.9: Repressed.

Sheet INFRASTRUCTURE

Sheet Physical infrastructure

Sheet Capital expenditure 2019-24
A2: INFRASTRUCTURE
A4: Physical infrastructure
A6: Infrastructure spending
A8: Capital expenditure by public sector institutions (actual numbers), 2022-24
A10: Institution
B11: 2022 | C11: 2023 | D11: 2024 | E11: 2022 | F11: 2023 | G11: 2024 | H11: 2022 | I11: 2023 | J11: 2024 | K11: 2022 | L11: 2023 | M11: 2024 | N11: 2022 | O11: 2023 | P11: 2024 | Q11: 2022 | R11: 2023 | S11: 2024 | T11: 2022 | U11: 2023 | V11: 2024
B12: —Rbn—
A13: National governmenta | B13: 5.63 | C13: 5.25 | D13: 5.82 | E13: 2.64 | F13: 2.65 | G13: 2.53 | H13: 1.99 | I13: 2.3 | J13: 2.2 | K13: 3.4 | L13: 4.78 | M13: 4.84 | N13: 0.38 | O13: 0.83 | P13: 0.52 | Q13: 1 | R13: 0.82 | S13: 0.91 | T13: 15.04 | U13: 16.64 | V13: 16.84 | AH13: =(#REF!/Total255) ->  | AI13: =(#REF!/Total253) ->  | AJ13: =(#REF!/Total2553) ->  | AK13: =(#REF!/Total4896) ->  | AL13: =(#REF!/Total5635) ->  | AM13: =(#REF!/Total9945) ->  | AN13: =(#REF!/Total8955) ->  | AO13: =(#REF!/Total7799) ->  | AP13: =(#REF!/Total2496) ->  | AQ13: =(#REF!/Total85296) ->  | AR13: =(#REF!/Total3329) ->  | AS13: =(#REF!/Total2689) -> 
A14: Provincial governmenta | B14: 15.05 | C14: 15.4 | D14: 17.23 | E14: 4.63 | F14: 4.75 | G14: 4.98 | H14: 1.17 | I14: 1.6 | J14: 2.13 | K14: 11.02 | L14: 11.46 | M14: 11.25 | N14: 0.35 | O14: 0.25 | P14: 0.37 | Q14: 1.52 | R14: 1.63 | S14: 1.55 | T14: 33.73 | U14: 35.12 | V14: 37.54 | AH14: =(#REF!/Total255) ->  | AI14: =(#REF!/Total253) ->  | AJ14: =(#REF!/Total2553) ->  | AK14: =(#REF!/Total4896) ->  | AL14: =(#REF!/Total5635) ->  | AM14: =(#REF!/Total9945) ->  | AN14: =(#REF!/Total8955) ->  | AO14: =(#REF!/Total7799) ->  | AP14: =(#REF!/Total2496) ->  | AQ14: =(#REF!/Total85296) ->  | AR14: =(#REF!/Total3329) ->  | AS14: =(#REF!/Total2689) -> 
A15: Extra-budgetary accounts and fundsa | B15: 9.25 | C15: 12.6 | D15: 16.97 | E15: 2.8 | F15: 16.72 | G15: 24.02 | H15: 0.73 | I15: 1.33 | J15: 1.5 | K15: 3.48 | L15: 3.18 | M15: 3.19 | N15: 2.91 | O15: 3.26 | P15: 6 | Q15: 1.45 | R15: 2.71 | S15: 2.48 | T15: 20.61 | U15: 39.86 | V15: 54.19 | AH15: =(#REF!/Total255) ->  | AI15: =(#REF!/Total253) ->  | AJ15: =(#REF!/Total2553) ->  | AK15: =(#REF!/Total4896) ->  | AL15: =(#REF!/Total5635) ->  | AM15: =(#REF!/Total9945) ->  | AN15: =(#REF!/Total8955) ->  | AO15: =(#REF!/Total7799) ->  | AP15: =(#REF!/Total2496) ->  | AQ15: =(#REF!/Total85296) ->  | AR15: =(#REF!/Total3329) ->  | AS15: =(#REF!/Total2689) -> 
A16: Municipalitiesb | B16: 47.7 | C16: 48.68 | D16: 57.7 | E16: 3.53 | F16: 4.66 | G16: 4.59 | H16: 1.62 | I16: 3.02 | J16: 4.22 | K16: 2.21 | L16: 3.38 | M16: 2.35 | N16: 0.99 | O16: 1.08 | P16: 2.14 | Q16: 0.33 | R16: 0.16 | S16: 0.55 | T16: 56.38 | U16: 61.02 | V16: 71.57 | AH16: =(#REF!/Total255) ->  | AI16: =(#REF!/Total253) ->  | AJ16: =(#REF!/Total2553) ->  | AK16: =(#REF!/Total4896) ->  | AL16: =(#REF!/Total5635) ->  | AM16: =(#REF!/Total9945) ->  | AN16: =(#REF!/Total8955) ->  | AO16: =(#REF!/Total7799) ->  | AP16: =(#REF!/Total2496) ->  | AQ16: =(#REF!/Total85296) ->  | AR16: =(#REF!/Total3329) ->  | AS16: =(#REF!/Total2689) -> 
A17: Public corporationsa | B17: 38.64 | C17: 41.44 | D17: 49.37 | E17: 26.19 | F17: 21.96 | G17: 25.98 | H17: 0.17 | I17: 0.38 | J17: 0.82 | K17: 0.83 | L17: 0.51 | M17: 1.53 | N17: 1.97 | O17: 3.58 | P17: 3.27 | Q17: 6.6 | R17: 4.11 | S17: 3.5 | T17: 74.4 | U17: 72.01 | V17: 84.5 | AH17: =(#REF!/Total255) ->  | AI17: =(#REF!/Total253) ->  | AJ17: =(#REF!/Total2553) ->  | AK17: =(#REF!/Total4896) ->  | AL17: =(#REF!/Total5635) ->  | AM17: =(#REF!/Total9945) ->  | AN17: =(#REF!/Total8955) ->  | AO17: =(#REF!/Total7799) ->  | AP17: =(#REF!/Total2496) ->  | AQ17: =(#REF!/Total85296) ->  | AR17: =(#REF!/Total3329) ->  | AS17: =(#REF!/Total2689) -> 
A18: Higher education institutionsc | B18: 2.53 | C18: 1.9 | D18: 3.6 | E18: 2.31 | F18: 3.24 | G18: 3.2 | H18: 0.12 | I18: 0.18 | J18: 0.16 | K18: 2.5 | L18: 3.41 | M18: 2.97 | N18: 0.35 | O18: 2.97 | P18: 0.16 | Q18: 1.1 | R18: 0.55 | S18: 1.25 | T18: 8.91 | U18: 9.48 | V18: 11.37 | AH18: =(#REF!/Total255) ->  | AI18: =(#REF!/Total253) ->  | AJ18: =(#REF!/Total2553) ->  | AK18: =(#REF!/Total4896) ->  | AL18: =(#REF!/Total5635) ->  | AM18: =(#REF!/Total9945) ->  | AN18: =(#REF!/Total8955) ->  | AO18: =(#REF!/Total7799) ->  | AP18: =(#REF!/Total2496) ->  | AQ18: =(#REF!/Total85296) ->  | AR18: =(#REF!/Total3329) ->  | AS18: =(#REF!/Total2689) -> 
A19: Total capital expenditure | B19: 118.79 | C19: 125.33 | D19: 150.73 | E19: 42.09 | F19: 54.01 | G19: 65.31 | H19: 5.81 | I19: 8.84 | J19: 11.05 | K19: 23.49 | L19: 26.76 | M19: 26.16 | N19: 6.95 | O19: 9.2 | P19: 12.48 | Q19: 12 | R19: 9.99 | S19: 10.27 | T19: 209.07 | U19: 234.14 | V19: 276.03 | AH19: =(#REF!/Total255) ->  | AI19: =(#REF!/Total253) ->  | AJ19: =(#REF!/Total2553) ->  | AK19: =(#REF!/Total4896) ->  | AL19: =(#REF!/Total5635) ->  | AM19: =(#REF!/Total9945) ->  | AN19: =(#REF!/Total8955) ->  | AO19: =(#REF!/Total7799) ->  | AP19: =(#REF!/Total2496) ->  | AQ19: =(#REF!/Total85296) ->  | AR19: =(#REF!/Total3329) ->  | AS19: =(#REF!/Total2689) -> 
A20: Source: Stats SA, Capital expenditure by the public-sector for 2024, Statistical release P9101, 30 October 2025
A22: a Financial year ended 31 March.
A23: b Financial year ended 30 June.
A24: c Financial year ended 31 December.

Sheet Energy

Sheet Electric generation.2025
B2: Energy
B4: Electricity
B6: Electricity generation by fuel type, 2025
I7: Proportiona
B8: Fuel type | C8: Gigawatt hours (GWh) | D8: Proportiona of total | H8: Coal | I8: 0.917
B9: Coal | C9: 179426 | D9: =(C9/Total100) -> 0.9168327355 | H9: Nuclear power | I9: 0.043
B10: Nuclear power | C10: 8409 | D10: =(C10/Total100) -> 0.04296839072 | H10: Pumped storage stations | I10: 0.02376256935
B11: Pumped storage stations | C11: 4649 | D11: =(C11/Total100) -> 0.02375550582 | H11: Hydro stations | I11: 0.004
B12: Hydro stations | C12: 710 | D12: 0.003627964967 | H12: Open Cycle Gas Turbines | I12: 0.011
B13: Open-cycle gas turbines | C13: 2176 | D13: 0.01111894615 | H13: Wind | I13: 0.001782463592
B14: Wind | C14: 332 | D14: 0.001696456858
B15: Total | C15: 195702 | D15: =SUM(D9:D14) -> 1
B16: Source: Eskom, Integrated Report 2025, 31 March 2025, p9
B17: a CRA calculations.

Sheet Electric sales.cust.2025
B2: Electricity sales by customer type, 2025 | K2: Proportion
J3: Distributors | K3: 0.416
B4: Customer type | C4: GWh | D4: Proportiona of total | J4: Industrial | K4: 0.227
B5: Distributors | C5: 78993 | D5: =(C5/Total250) -> 0.4163596401 | J5: Mining | K5: 0.144
B6: Residential | C6: 8776 | D6: =(C6/Total250) -> 0.04625691139 | J6: International | K6: 0.077
B7: Commercial | C7: 10071 | D7: 0.05308265208 | J7: Commercial | K7: 0.053
B8: Industrial | C8: 43153 | D8: 0.2274526547 | J8: Residential | K8: 0.046
B9: Mining | C9: 27239 | D9: 0.1435724714 | J9: Agriculture | K9: 0.028
B10: Agriculture | C10: 5286 | D10: 0.02786167202 | J10: Rail | K10: 0.009
B11: Rail | C11: 1673 | D11: 0.008818119047
B12: International | C12: 14532 | D12: 0.07659587926
B13: Totalb | C13: 189723 | D13: =SUM(D5:D12) -> 1
B14: Source: Eskom, Integrated Report 2025, 31 March 2025, p148
B15: a CRA calculations.

Sheet Electricity imports-exports
A3: Electricity imports and exports, 2014/15-2024/25
B5: 2014/15 | C5: 2015/16 | D5: 2019/20 | E5: 2020/21 | F5: 2021/22 | G5: 2022/23 | H5: 2023/24 | I5: 2024/25
A6: Imports | B6: —GWh—
A7: International purchases | B7: 10731 | C7: 9703 | D7: 8568 | E7: 8812 | F7: 8812 | G7: 8654 | H7: 9150 | I7: 7570
A8: Wheelinga | B8: 3623 | C8: 3930 | D8: 2491 | E8: 2310 | F8: 2499 | G8: 2904 | H8: 2449 | I8: 2028
A9: Total | B9: =SUM(B7:B8) -> 14354 | C9: 13633 | D9: =SUM(D7:D8) -> 11059 | E9: 11122 | F9: 11311 | G9: 11558 | H9: =SUM(H7:H8) -> 11599 | I9: =SUM(I7:I8) -> 9598
A10: Exports
A11: International salesb | B11: 12000 | C11: 13465 | D11: 15189 | E11: 13497 | F11: 13298 | G11: 11437 | H11: 10362 | I11: 14532
A12: Wheeling | B12: 3623 | C12: 3930 | D12: 2491 | E12: 2310 | F12: 2499 | G12: 2904 | H12: 2449 | I12: 2028
A13: Total | B13: =SUM(B11:B12) -> 15623 | C13: 17395 | D13: =SUM(D11:D12) -> 17680 | E13: 15807 | F13: 15797 | G13: 14341 | H13: =SUM(H11:H12) -> 12811 | I13: =SUM(I11:I12) -> 16560
A14: Source: Eskom, Integrated Report 2025, 31 March 2025, pp9, 105
A15: a The buying and selling of electricity between Eskom and foreign parties without the power being available to the South African grid.
A16: b Includes exports to Lesotho by Distribution International.

Sheet Electricity capacity. 25
A2: Electricity capacity (Eskoma), 2025 | Y2: Electricity capacity (Eskoma), 2020
A4: Power station | B4: Total installed capacity MWb | C4: Total nominal capacity MWb | Y4: Power stations | Z4: Total installed capacity MWb | AA4: Total nominal capacity MWb
A5: —Coal-firedc— | Y5: —Coal-firedc—
A6: Arnot Power Station, Middelburg (Mpumalanga) | B6: 2220 | C6: 2100 | Y6: Arnot Power Station, Middelburg (Mpumalanga) | Z6: 2220 | AA6: 2100
A7: Camden Power Station, Ermelo (Mpumalanga) | B7: 1561 | C7: 1481 | Y7: Camden Power Station, Ermelo (Mpumalanga) | Z7: 1561 | AA7: 1481
A8: Duvha Power Station, Emalahleni (Mpumalanga) | B8: 3000 | C8: 2875 | Y8: Duvha Power Station, Emalahleni (Mpumalanga) | Z8: 3000 | AA8: 2875
A9: Grootvlei Power Station, Balfour (Mpumalanga) | B9: 1180 | C9: 570 | Y9: Grootvlei Power Station, Balfour (Mpumalanga) | Z9: 1180 | AA9: 570
A10: Hendrina Power Station, Hendrina (Mpumalanga) | B10: 1666 | C10: 1041 | Y10: Hendrina Power Station, Hendrina (Mpumalanga) | Z10: 1760 | AA10: 1135
A11: Kendal Power Station, Emalahleni(Mpumalanga) | B11: 4116 | C11: 3840 | Y11: Kendal Power Station, Emalahleni(Mpumalanga) | Z11: 4116 | AA11: 3840
A12: Komati Power Station, Middelburg (Mpumalanga) | B12: 990 | C12: — | Y12: Komati Power Station, Middelburg (Mpumalanga) | Z12: 990 | AA12: 205
A13: Kriel Power Station, Bethal (Mpumalanga) | B13: 2790 | C13: 2640 | Y13: Kriel Power Station, Bethal (Mpumalanga) | Z13: 3000 | AA13: 2850
A14: Kusile Power Station, Ogies (Mpumalanga) | B14: 3995 | C14: 3600 | Y14: Kusile Power Station, Ogies (Mpumalanga) | Z14: 799 | AA14: 720
A15: Lethabo Power Station, Vereeniging (Gauteng) | B15: 3708 | C15: 3558 | Y15: Lethabo Power Station, Vereeniging (Gauteng) | Z15: 3708 | AA15: 3558
A16: Majuba Power Station, Volksrust (Mpumalanga) | B16: 4110 | C16: 3807 | Y16: Majuba Power Station, Volksrust (Mpumalanga) | Z16: 4110 | AA16: 3843
A17: Matimba Power Station, Lephalale (Limpopo) | B17: 3990 | C17: 3690 | Y17: Matimba Power Station, Lephalale (Limpopo) | Z17: 3990 | AA17: 3690
A18: Matla Power Station, Bethal (Mpumalanga) | B18: 3600 | C18: 3450 | Y18: Matla Power Station, Bethal (Mpumalanga) | Z18: 3600 | AA18: 3450
A19: Medupi Power Station, Lephalale (Limpopo) | B19: 4760 | C19: 3600 | Y19: Medupi Power Station, Lephalale (Limpopo) | Z19: 3970 | AA19: 3597
A20: Tutuka Power Station, Standerton (Mpumalanga) | B20: 3654 | C20: 2925 | Y20: Tutuka Power Station, Standerton (Mpumalanga) | Z20: 3654 | AA20: 3510
A21: Total | B21: =SUM(B6:B20) -> 45340 | C21: =SUM(C6:C20) -> 39177 | Y21: Total | Z21: =SUM(Z6:Z20) -> 41658 | AA21: =SUM(AA6:AA20) -> 37424
A22: —Gas/liquid fuel turbine stationsd— | Y22: —Gas/liquid fuel turbine stationsd—
A23: Acacia Power Station, Cape Town (Western Cape) | B23: 171 | C23: 171 | Y23: Acacia Power Station, Cape Town (Western Cape) | Z23: 171 | AA23: 171
A24: Ankerlig Gas Power Station, Atlantis (Western Cape) | B24: 1338 | C24: 1327 | Y24: Ankerlig Gas Power Station, Atlantis (Western Cape) | Z24: 1338 | AA24: 1327
A25: Gourikwa, between Mossel Bay and Riversdale (Western Cape) | B25: 746 | C25: 740 | Y25: Gourikwa, between Mossel Bay and Riversdale (Western Cape) | Z25: 746 | AA25: 740
A26: Port Rex Power Station, East London (Eastern Cape) | B26: 171 | C26: 171 | Y26: Port Rex Power Station, East London (Eastern Cape) | Z26: 171 | AA26: 171
A27: Total | B27: =SUM(B23:B26) -> 2426 | C27: =SUM(C23:C26) -> 2409 | Y27: Total | Z27: =SUM(Z23:Z26) -> 2426 | AA27: =SUM(AA23:AA26) -> 2409
A28: —Hydroelectric— | Y28: —Hydroelectric—
A29: Gariep Hydroelectric Power Station, Gariep Dam (Free State)d | B29: 360 | C29: 360 | Y29: Gariep Hydroelectric Power Station, Gariep Dam (Free State)d | Z29: 360 | AA29: 360
A30: Vanderkloof Hydro Electric Power Station (Free State)d | B30: 240 | C30: 240 | Y30: Vanderkloof Hydro Electric Power Station (Free State)d | Z30: 240 | AA30: 240
A31: Total | B31: =SUM(B29:B30) -> 600 | C31: =SUM(C29:C30) -> 600 | Y31: Total | Z31: =SUM(Z29:Z30) -> 600 | AA31: =SUM(AA29:AA30) -> 600
A32: —Nuclearc— | Y32: —Nuclearc—
A33: Koeberg Power Station, Cape Town (Western Cape) | B33: 1934 | C33: 1854 | Y33: Koeberg Power Station, Cape Town (Western Cape) | Z33: 1940 | AA33: 1860
A34: Total | B34: 1934 | C34: 1854 | Z34: 1940 | AA34: 1860
A35: —Pumped storage schemesde— | Y35: —Pumped storage schemesde—
A36: Drakensberg Pumped Storage Scheme, Bergville (KwaZulu-Natal) | B36: 1000 | C36: 1000 | Y36: Drakensberg Pumped Storage Scheme, Bergville (KwaZulu-Natal) | Z36: 1000 | AA36: 1000
A37: Ingula Pumped Storage Scheme, Ladysmith (KwaZulu-Natal) | B37: 1332 | C37: 1324 | Y37: Ingula Pumped Storage Scheme, Ladysmith (KwaZulu-Natal) | Z37: 1332 | AA37: 1324
A38: Palmiet Pumped Storage Scheme, Grabouw (Western Cape) | B38: 400 | C38: 400 | Y38: Palmiet Pumped Storage Scheme, Grabouw (Western Cape) | Z38: 400 | AA38: 400
A39: Total | B39: =SUM(B36:B38) -> 2732 | C39: =SUM(C36:C38) -> 2724 | Y39: Total | Z39: =SUM(Z36:Z38) -> 2732 | AA39: =SUM(AA36:AA38) -> 2724
A40: —Wind energyd— | Y40: —Wind energyd—
A41: Sere Wind Facility, Vredendal (Western Cape) | B41: 100 | C41: 100 | Y41: Sere Wind Facility, Vredendal (Western Cape) | Z41: 100 | AA41: 100
A42: Total | B42: 100 | C42: 100 | Y42: Total | Z42: 100 | AA42: 100
A43: TOTAL FOR CAPACITY MANAGEMENTf | B43: =SUM(B21,B27,B29:B30,B34,B39) -> 53032 | C43: =SUM(C21,C27,C29:C30,C34,C39) -> 46764 | Y43: TOTAL FOR CAPACITY MANAGEMENTf | Z43: =SUM(Z21,Z27,Z29:Z30,Z34,Z39) -> 49356 | AA43: =SUM(AA21,AA27,AA29:AA30,AA34,AA39) -> 45017
A44: TOTAL POTENTIAL CAPACITY | B44: =SUM(B42,B39,B34,B31,B27,B21) -> 53132 | C44: =SUM(C42,C39,C34,C31,C27,C21) -> 46864 | Y44: TOTAL POTENTIAL CAPACITY | Z44: =SUM(Z42,Z39,Z34,Z31,Z27,Z21) -> 49456 | AA44: =SUM(AA42,AA39,AA34,AA31,AA27,AA21) -> 45117
A45: Source: Eskom, Integrated Report 2025, 31 March 2025, pp145-146 | Y45: Source: Eskom, Integrated Report 2020, 31 March 2020, p149
A46: a South Africa's public electricity supply utility, established in 1923. | Y46: a South Africa's public electricity supply utility, established in 1923.
A47: b Megawatts. Installed capacity refers to the maximum amount of output of electricity a plant can produce under ideal conditions. According to Eskom, the difference between installed and nominal capacity reflects auxiliary power consumption and reduced capacity caused by the age of the plant. | Y47: b Megawatts. Installed capacity refers to the maximum amount of output of electricity a plant can produce under ideal conditions. According to Eskom, the difference between installed and nominal capacity reflects auxiliary power consumption and reduced capacity caused by the age of the plant.
A48: c Base load stations. Baseload power refers to the minimum amount of electric power needed to be supplied to the electrical grid at any given time (power stations are designed to operate continuously and are largely coal-fired). | Y48: c Base load stations. Baseload power refers to the minimum amount of electric power needed to be supplied to the electrical grid at any given time (power stations are designed to operate continuously and are largely coal-fired).
A49: d Peaking stations. Peaking power refers to electricity use at its highest points during a day. | Y49: d Peaking stations. Peaking power refers to electricity use at its highest points during a day.
A50: e Pumped storage facilities are net users of electricity. Water is pumped during off-peak periods so that hydro electricity can be generated during peak periods. | Y50: e Pumped storage facilities are net users of electricity. Water is pumped during off-peak periods so that hydro electricity can be generated during peak periods.
A51: f Installed and operational, but not included for capacity management purposes. Stations include Sere, Colley Wobbles, First, Second Falls and Ncora. | Y51: f Installed and operational, but not included for capacity management purposes. Stations include Sere, Colley Wobbles, First, Second Falls and Ncora.

Sheet Electricity capacity.IPPs.25
B2: Electricity capacity (Independent Power Producersa), 2025
B4: Source | C4: Total nominal capacity MWb
B5: Biomass | C5: 25
B6: Concentrating solar powerc | C6: 500
B7: Fossil fuels (STPPP) | C7: 160
B8: Gas/liquid fuel | C8: 1005
B9: Hydroelectric | C9: 18
B10: Landfilld | C10: 8
B11: Renewable with battery storage (RMIPPPP) | C11: 150
B12: Solar PhotoVoltaic energy | C12: 2287
B13: Wind | C13: 3342
B14: Total | C14: =SUM(C5:C13) -> 7495
B15: Source: Eskom, Integrated Report 2025, 31 March 2025, p146
B16: a An Independent Power Producer (IPP) is an entity, other than Eskom, that owns or operates, in whole or in part, one or more independent power generation facilities.
B17: b Megawatts.
B18: c Concentrating solar power (CSP) technologies use a mirror configuration to concentrate the sun’s light energy onto a receiver and convert it into heat. The heat can then be used to create steam to drive a turbine to produce electrical power or used as industrial process heat.
B19: d A facility that combusts waste to produce electricity.

Sheet Sources of energy

Sheet Coal

Sheet Coal production.2014-24
B2: Main sources of energy
B4: Coal
B6: Coal production, selected countries, 2010-24
B8: —Million tonnesa—
B9: Country | C9: 2010 | D9: 2015 | E9: 2017 | F9: 2018 | G9: 2019 | H9: 2020 | I9: 2021 | J9: 2022 | K9: 2023 | L9: 2024
B10: China | C10: 3428.4473 | D10: 3746.5416 | E10: 3523.5618 | F10: 3698 | G10: 3846 | H10: 3902 | I10: 4125.8339 | J10: 4560 | K10: 4710 | L10: 4780
B11: India | C11: 572.2800783 | D11: 674.153 | E11: 711.681 | F11: 760.407 | G11: 753.9 | H11: 756.5 | I11: 812.302 | J11: 910.872 | K11: 1010.896 | L11: 1085.1
B12: United States | C12: 983.722193 | D12: 813.6907556 | E12: 702.7137571 | F12: 685.9832192 | G12: 640.8 | H12: 484.7 | I12: 523.8368207 | J12: 539.3988975 | K12: 526.5173546 | L12: 464.6
B13: Indonesia | C13: 275.164196 | D13: 461.56608 | E13: 461.248184 | F13: 557.77294 | G13: 616.2 | H13: 562.5 | I13: 613.990256 | J13: 687.432384 | K13: 775.181855 | L13: 836.1
B14: Australia | C14: 434.4018897 | D14: 503.7454886 | E14: 487.2262037 | F14: 502 | G14: 504.1 | H14: 476.7 | I14: 460.2765237 | J14: 443.4252536 | K14: 455.7683657 | L14: 462.9
B15: Russia | C15: 322.93663 | D15: 372.4823529 | E15: 412.5403407 | F15: 441.5764706 | G15: 440.9 | H15: 399.8 | I15: 434.0702935 | J15: 439.0283635 | K15: 432.4980715 | L15: 427.2
B16: South Africa | C16: 254.521942 | D16: 252.1764729 | E16: 252.343008 | F16: 250 | G16: 258.4 | H16: 248.3 | I16: 229.7944315 | J16: 225.9355473 | K16: 228.5 | L16: 235
B17: Germany | C17: 182.303 | D17: 184.288 | E17: 175.122 | F17: 168.842 | G17: 131.3 | H17: 107.4 | I17: 126.2569998 | J17: 132.4999998 | K17: 102.2999998 | L17: 91.9
B18: Kazakhstan | C18: 110.929564 | D18: 107.3181978 | E18: 112.2936 | F18: 118.4833 | G18: 115 | H18: 113.2 | I18: 116.2185 | J18: 117.9823 | K18: 116.3521 | L18: 112.6
B19: Poland | C19: 133.238 | D19: 135.814 | E19: 127.076 | F19: 122.427868 | G19: 112.409162 | H19: 100.7 | I19: 107.640383 | J19: 107.4537597 | K19: 88.69795555 | L19: 85.2
B20: Source: BP, Statistical Review of World Energy 2025, www.bp.com/statisticalreview, accessed 14 May 2026
B21: a Metric tonnes.
B22: N/A — Not available.

Sheet Natural gas

Sheet Gas production.2010-24
B2: Natural gas
B4: Natural gas production, selected countries, 2010-24
C6: —Billion cubic feet per day—
B7: Country | C7: 2010 | D7: 2015 | E7: 2016 | F7: 2017 | G7: 2018 | H7: 2019 | I7: 2020 | J7: 2021 | K7: 2022 | L7: 2023 | M7: 2024
B8: United States | C8: 55.64792083 | D8: 71.62618558 | E8: 70.18124473 | F8: 72.1938817 | G8: 81.4 | H8: 90 | I8: 88.3 | J8: 90.38619592 | K8: 94.6772284 | L8: 100.1675427 | M8: 99.67268171
B9: Russia | C9: 57.89541342 | D9: 56.54598889 | E9: 56.85808938 | F9: 61.49210231 | G9: 64.73835348 | H9: 65.69928561 | I9: 61.2 | J9: 67.89123708 | K9: 59.82866829 | L9: 56.73394374 | M9: 60.7743955
B10: Iran | C10: 13.92366767 | D10: 17.75871782 | E10: 19.23413282 | F10: 21.23978962 | G10: 22.45 | H10: 23.4 | I10: 24.2 | J10: 24.83636961 | K10: 25.09746719 | L10: 24.35047056 | M10: 25.36824528
B11: Qatar | C11: 11.91132215 | D11: 17.01 | E11: 16.75111794 | F11: 16.5 | G11: 16.4 | H11: 16.7 | I11: 16.5 | J11: 17.12519447 | K11: 17.2617155 | L11: 17.50993718 | M11: 17.31483863
B12: China | C12: 9.340923488 | D12: 13.12630321 | E12: 13.30973132 | F12: 14.43493547 | G12: 15.62850171 | H12: 17.17896766 | I12: 18.7 | J12: 20.24062533 | K12: 21.46371443 | L12: 22.66508175 | M12: 23.96665761
B13: Norway | C13: 10.29890731 | D13: 11.24635215 | E13: 11.18206509 | F13: 12 | G13: 11.73480745 | H13: 11.05 | I13: 10.75 | J13: 11.05881203 | K13: 11.88587838 | L13: 11.28459045 | M13: 10.92245927
B14: Saudi Arabia | C14: 8.057257936 | D14: 9.600508686 | E14: 10.16184237 | F14: 10.57023084 | G14: 10.9 | H14: 10.6 | I14: 10.82 | J14: 11.34906956 | K14: 11.64491142 | L14: 11.04192795 | M14: 11.72161967
B15: Algeria | C15: 7.488309698 | D15: 7.876731074 | E15: 8.818270226 | F15: 8.995712437 | G15: 9.079617414 | H15: 8.4 | I15: 7.86 | J15: 9.752653125 | K15: 9.498676679 | L15: 9.824611664 | M15: 9.139321274
B16: Malaysia | C16: 6.296851876 | D16: 7.435043542 | E16: 7.400204991 | F16: 7.591745984 | G16: 7.474895576 | H16: 7.7 | I16: 7.06 | J16: 7.179036328 | K16: 7.977015461 | L16: 7.844125157 | M16: 7.754436475
B17: Indonesia | C17: 8.417517356 | D17: 7.368883315 | E17: 7.244326776 | F17: 7.03438937 | G17: 7.043744055 | H17: 6.534891036 | I17: 6.09 | J17: 5.737423912 | K17: 5.584560589 | L17: 6.217706344 | M17: 6.888168334
B18: Source: BP, Statistical Review of World Energy 2025, www.bp.com/statisticalreview, accessed 14 May 2026

Sheet Oil&Petroleum

Sheet Oil reserves.25
B2: Oil and petroleum
B4: Oil reserves, production, refinery capacity, imports and consumption, 2025
B6: Estimated production (World) | C6: 96 890 000 per day (bp/d)
B7: Estimated refinery capacity (South Africa) | C7: 215 000 bp/d
B8: Estimated daily consumption (World) | C8: 104 710 000 bp/d
B9: Source: BP, Statistical Review of World Energy 2025, pp21, 26, 31

Sheet Oil imports.exports.19.24
B2: Oil imports and exports, 2019-24
C5: —2019— | E5: —2021— | G5: —2022— | I5: —2023— | K5: —2024—
C6: Crude imports | D6: Crude exports | E6: Crude imports | F6: Crude exports | G6: Crude imports | H6: Crude exports | I6: Crude imports | J6: Crude exports | K6: Crude imports | L6: Crude exports
B7: Country/region | C7: —Million tonnes—
B8: Australasia | C8: 22.9 | D8: 11.7 | E8: 14.9 | F8: 9.2 | G8: 10.3 | H8: 8.9 | I8: 8.376219491 | J8: 10.04680011 | K8: 7.813865554 | L8: 9.074434039
B9: Canada | C9: 34.8 | D9: 197.7 | E9: 23.9 | F9: 197.4 | G9: 23.7 | H9: 200.3 | I9: 25.58514801 | J9: 209.441928 | K9: 25.14782855 | L9: 219.3535941
B10: China | C10: 507.3 | D10: 0.4 | E10: 526 | F10: 1.6 | G10: 508.2 | H10: 1.3 | I10: 572.5215453 | J10: 0.763253952 | K10: 554.0854751 | L10: 0.9059923382
B11: East and Southern Africa | C11: 19.6 | D11: 5.5 | E11: 12.4 | F11: 4.8 | G11: 6.8 | H11: 1.7 | I11: 7.355193276 | J11: 2.56606816 | K11: 10.26170201 | L11: 1.985982649
B12: Europe | C12: 556 | D12: 28.1 | E12: 467.7 | F12: 36.4 | G12: 501.3 | H12: 19.6 | I12: 457.2539833 | J12: 12.32386615 | K12: 463.405928 | L12: 12.42781678
B13: India | C13: 221.8 | D13: 0.1 | E13: 213.7 | F13: 0.1 | G13: 231.2 | H13: *a | I13: 230.643174 | J13: 0.05097131986 | K13: 238.6373745 | L13: 0.05095670912
B14: Iraq | C14: *a | D14: 204.4 | E14: *a | F14: 176.1 | G14: *a | H14: 191 | I14: *a | J14: 186.1467445 | K14: *a | L14: 179.6225416
B15: Japan | C15: 146.9 | D15: *a | E15: 122.1 | F15: 0.4 | G15: 132.5 | H15: 0.4 | I15: 125.5293404 | J15: *a | K15: 114.9586424 | L15: 0.09176694453
B16: Kuwait | C16: *a | D16: 99.9 | E16: *a | F16: 88.4 | G16: *a | H16: 90.3 | I16: 1.3529e-05 | J16: 81.1390185 | K16: 0 | L16: 60.0900456
B17: Mexico | C17: *a | D17: 58.1 | E17: *a | F17: 52.9 | G17: *a | H17: 49.4 | I17: *a | J17: 53.7684744 | K17: *a | L17: 41.68941275
B18: North Africa | C18: 5.8 | D18: 97.8 | E18: 9.3 | F18: 85.4 | G18: *a | H18: 76.5 | I18: 3.862586661 | J18: 78.18167024 | K18: 2.211606464 | L18: 73.11687656
B19: Other Asia Pacific | C19: 287.3 | D19: 39 | E19: 257.1 | F19: 38.2 | G19: 286.3 | H19: 49 | I19: 299.0498745 | J19: 12.6578449 | K19: 295.4484194 | L19: 11.71682869
B20: Other CISb | C20: 18.5 | D20: 93.9 | E20: 15.9 | F20: 87.1 | G20: 16.2 | H20: 85.7 | I20: 15.43046869 | J20: 91.59816881 | K20: 16.12386818 | L20: 90.58151226
B21: Other Middle East | C21: 26 | D21: 120.5 | E21: 18.7 | F21: 97 | G21: 16.3 | H21: 92.2 | I21: 22.00851776 | J21: 154.3375319 | K21: 20.46461844 | L21: 163.589963
B22: Russia | C22: *a | D22: 289 | E22: *a | F22: 263.6 | G22: 0.1 | H22: 264.7 | I22: 0.03366764022 | J22: 239.2028841 | K22: 0.03366734022 | L22: 243.0814244
B23: Saudi Arabia | C23: 0.1 | D23: 366 | E23: *a | F23: 323.2 | G23: 0.9 | H23: 364.8 | I23: 2.068083089 | J23: 346.353685 | K23: 7.782544205 | L23: 320.5855438
B24: Singapore | C24: 49.6 | D24: 1.9 | E24: 47 | F24: 1 | G24: 44.4 | H24: 0.5 | I24: 42.29093263 | J24: 1.882071358 | K24: 43.505216 | L24: 0.007004725546
B25: South and Central America | C25: 21.1 | D25: 146.8 | E25: 21.8 | F25: 124.1 | G25: 24.4 | H25: 117.2 | I25: 20.32830357 | J25: 154.4098011 | K25: 20.74967796 | L25: 184.0721542
B26: United Arab Emirates | C26: 8.8 | D26: 135.4 | E26: 3.2 | F26: 146.1 | G26: 5 | H26: 172.9 | I26: 5.101740646 | J26: 168.767812 | K26: 5.364524402 | L26: 182.6538884
B27: United States | C27: 338.4 | D27: 142.5 | E27: 304.7 | F27: 138.5 | G27: 312.6 | H27: 172.9 | I27: 324.2920142 | J27: 194.0694288 | K27: 328.9847067 | L27: 198.2789498
B28: West Africa | C28: 0.4 | D28: 226.8 | E28: 0.5 | F28: 187.4 | G28: 0.7 | H28: 169.7 | I28: 1.397648882 | J28: 165.4231455 | K28: 2.800908138 | L28: 164.8041027
B29: Source: BP, Statistical Review of World Energy 2025, p33
B30: a Less than 0.05.
B31: b Commonwealth of Independent States.

Sheet Refinery owner&crude.24
B2: Refinery ownership and crude throughput, 2024
B4: Refinery | C4: Crude throughput Bpsda | D4: Ownership
B5: —Crude oil—
B6: Astron Energy | C6: 100000
B7: Natref (Sasolburg) | C7: 108000 | D7: Sasol/Total SA
B8: —Coal and gas—
B9: Sasol Synfuels (Secunda) | C9: 150000 | D9: Sasol
B10: Source: SAPIA, Annual Report 2024, p34
B11: a Barrels per stream day. This amount of oil processed by a single refining unit during one day when the plant is running continuously.

Sheet Petroleum Consump.1991-2024
B2: Petroleum consumption, 1991-2024
B4: Year | C4: Petrol | D4: Diesel | E4: Paraffina | F4: Jet fuel | G4: Fuel oilb | H4: LPGc
C5: —Million litres—
B6: 1991 | C6: 8906 | D6: 5130 | E6: 725 | F6: 861 | G6: 526 | H6: 464
B7: 1994 | C7: 9630 | D7: 5110 | E7: 875 | F7: 1193 | G7: 633 | H7: 485
B8: 1997 | C8: 10798 | D8: 5875 | E8: 970 | F8: 1777 | G8: 635 | H8: 502
B9: 2000 | C9: 10396 | D9: 6254 | E9: 857 | F9: 2020 | G9: 555 | H9: 567
B10: 2003 | C10: 10667 | D10: 7263 | E10: 769 | F10: 2099 | G10: 528 | H10: 558
B11: 2006 | C11: 11279 | D11: 8708 | E11: 738 | F11: 2260 | G11: 476 | H11: 605
B12: 2009 | C12: 11321 | D12: 9437 | E12: 551 | F12: 2349 | G12: 724 | H12: 554
B13: 2010 | C13: 11455 | D13: 10170 | E13: 545 | F13: 2308 | G13: 468 | H13: 612
B14: 2011 | C14: 11963 | D14: 11225 | E14: 581 | F14: 2434 | G14: 477 | H14: 717
B15: 2012 | C15: 11714 | D15: 11262 | E15: 470 | F15: 2367 | G15: 568 | H15: 656
B16: 2013 | C16: 11153 | D16: 11890 | E16: 530 | F16: 2223 | G16: 523 | H16: 485
B17: 2014 | C17: 11344 | D17: 13169 | E17: 558 | F17: 2197 | G17: 487 | H17: 398
B18: 2015 | C18: 12072 | D18: 14178 | E18: 573 | F18: 2441 | G18: 591 | H18: 588
B19: 2016 | C19: 10160 | D19: 10846 | E19: 558 | F19: 2121 | G19: 562 | H19: 557
B20: 2017 | C20: 11174 | D20: 12147 | E20: 648 | F20: 2713 | G20: 523 | H20: 551
B21: 2018 | C21: 11142 | D21: 12539 | E21: 702 | F21: 2346 | G21: 552 | H21: 504
B22: 2019 | C22: 10773 | D22: 12909 | E22: 620 | F22: 2439 | G22: 410 | H22: 495
B23: 2020 | C23: 8761 | D23: 11690 | E23: 702 | F23: 1091 | G23: 486 | H23: 448
B24: 2021 | C24: 9302 | D24: 12946 | E24: 1078 | F24: 1048 | G24: 491 | H24: 308
B25: 2022 | C25: 9185 | D25: 12717 | E25: 1178 | F25: 1478 | G25: 594 | H25: 323
B26: 2023 | C26: 9037 | D26: 12907 | E26: 1298 | F26: 1844 | G26: 658 | H26: 288
B27: 2024 | C27: 8763 | D27: 11807 | E27: 1195 | F27: 1754 | G27: 503 | H27: 279
B28: Source: Socio-Economic Survey of South Africa, p330; SAPIA, Annual Report 2024, p32
B29: a Includes power paraffin and illuminating paraffin.
B30: b Oil used as fuel in an engine or furnace.
B31: c Liquefied petroleum gas.

Sheet Petrol&Diesel Import.Expo 08-24
B2: Petrol and diesel imports and exports, 2009-24
C4: —Petrol— | E4: —Diesel— | G4: —Kerosenea— | I4: —LPGb—
B5: Year | C5: Imports | D5: Exports | E5: Imports | F5: Exports | G5: Imports | H5: Exports | I5: Imports | J5: Exports
C6: —Thousand tonnes—
B7: 2009 | C7: 1484 | D7: 333 | E7: 1943 | F7: 717 | G7: 85 | H7: 40 | I7: 13 | J7: 31
B8: 2010 | C8: 1571 | D8: 329 | E8: 2163 | F8: 618 | G8: 213 | H8: 53 | I8: 77 | J8: 36
B9: 2011 | C9: 1815 | D9: 176 | E9: 3153 | F9: 452 | G9: 199 | H9: 126 | I9: 47 | J9: 28
B10: 2012 | C10: 1370 | D10: 202 | E10: 3247 | F10: 504 | G10: 231 | H10: 62 | I10: 27 | J10: 37
B11: 2013 | C11: 1113 | D11: 122 | E11: 4158 | F11: 399 | G11: 183 | H11: 14 | I11: 65 | J11: 25
B12: 2014 | C12: 863 | D12: 750 | E12: 4197 | F12: 1261 | G12: 229 | H12: 92 | I12: 43 | J12: 53
B13: 2015 | C13: 1402 | D13: 816 | E13: 5451 | F13: 1368 | G13: 217 | H13: 667 | I13: 30 | J13: 18
B14: 2016 | C14: 1047 | D14: 868 | E14: 3716 | F14: 1585 | G14: 83 | H14: 266 | I14: 62 | J14: 25
B15: 2017 | C15: 1586 | D15: 811 | E15: 5070 | F15: 1498 | G15: 333 | H15: 277 | I15: 70 | J15: 39
B16: 2018 | C16: 1830 | D16: 1137 | E16: 5286 | F16: 1587 | G16: 342 | H16: 328 | I16: 40 | J16: 57
B17: 2019 | C17: 1477 | D17: 1179 | E17: 5838 | F17: 1783 | G17: 462 | H17: 293 | I17: 127 | J17: 92
B18: 2020 | C18: 1720 | D18: 1155 | E18: 6815 | F18: 914 | G18: 587 | H18: 619 | I18: 267 | J18: 109
B19: 2021 | C19: 4009 | D19: 1054 | E19: 9567 | F19: 895 | G19: — | H19: — | I19: 442 | J19: 109
B20: 2022 | C20: 5455 | D20: 793 | E20: 11914 | F20: 698 | G20: 964 | H20: 14 | I20: 368 | J20: 104
B21: 2023 | C21: 4483 | D21: 1018 | E21: 12794 | F21: 935 | G21: 963 | H21: 481 | I21: 871 | J21: 252
B22: 2024 | C22: 4000 | D22: 939 | E22: 14793 | F22: 821 | G22: 1053 | H22: 479 | I22: 2771 | J22: 232
B23: Source:Socio-Economic Survey of South Africa, p. 330; SAPIA, Annual Report 2024, p33
B25: a Kerosene includes illuminating paraffin, jet fuel and dual purpose kerosene.
B26: b Figures for LPG are in kilo tonnes.

Sheet Water

Sheet SA dams.2026
C2: Water
C4: South African dams, 2026
C6: Province | D6: Number of dams | E6: Total capacity (in millions of cubic metres)a | F6: Proportion of total capacity
C7: Eastern Cape | D7: 43 | E7: 1729.8 | F7: =E7/E16 -> 0.05447753156
C8: Free State | D8: 21 | E8: 15664.6 | F8: =E8/E16 -> 0.4933337616
C9: Gauteng | D9: 5 | E9: 128.1 | F9: =E9/E16 -> 0.004034322923
C10: KwaZulu-Natal | D10: 19 | E10: 4909.7 | F10: =E10/E16 -> 0.1546238506
C11: Limpopo | D11: 29 | E11: 1484.64 | F11: =E11/E16 -> 0.04675657443
C12: Mpumalanga | D12: 22 | E12: 2538.4 | F12: =E12/E16 -> 0.07994321084
C13: North West | D13: 28 | E13: 866.2 | F13: =E13/E16 -> 0.02727970739
C14: Northern Cape | D14: 6 | E14: 150.3 | F14: =E14/E16 -> 0.004733479589
C15: Western Cape | D15: 44 | E15: 1918.2 | F15: =E15/E16 -> 0.06041091516
C16: South Africa | D16: =SUM(D7:D15) -> 217 | E16: =SUM(E7:E15,E17,E18) -> 31752.54 | F16: —
C17: Lesotho | D17: 2 | E17: 2362.6 | F17: =E17/E16 -> 0.07440664589
C18: Eswatini | D18: — | E18: — | F18: —
C19: Source: Department of Water and Sanitation, Weekly State of the Reservoirs, accessed 15 May 2026
C20: a As at 11 May 2026.
C21: For information on access to water, please refer to the Living Conditions chapter.

Sheet Airports

Sheet SA airports.15-25
C2: Airports and air travel
C4: Aircraft landings at South Africa’s nine major airportsa, 2015/16-2024/25
C6: Year | D6: Domestic | E6: Regional | F6: International | G6: Totalb
C7: 2015/16 | D7: 141978 | E7: 13080 | F7: 36803 | G7: 284285
C8: 2016/17 | D8: 142230 | E8: 13138 | F8: 37722 | G8: 281703
C9: 2017/18 | D9: 140784 | E9: 13064 | F9: 38632 | G9: 264457
C10: 2018/19 | D10: 135738 | E10: 12613 | F10: 38948 | G10: 259169
C11: 2019/20 | D11: 130693 | E11: 11620 | F11: 38524 | G11: 248519
C12: 2020/21 | D12: 43557 | E12: 2543 | F12: 10217 | G12: 86434
C13: 2021/22 | D13: 91026 | E13: 6732 | F13: 22792 | G13: 176816
C14: 2022/23 | D14: 109075 | E14: 9354 | F14: 33156 | G14: 211787
C15: 2023/24 | D15: 122601 | E15: 11494 | F15: 39249 | G15: 228336
C16: 2024/25 | D16: 120210 | E16: 12104 | F16: 40423 | G16: 213290
C17: Source: Airports Company of South Africa (ACSA), Integrated Annual Report 2025, p38
C18: a These are the nine airports run by Acsa, namely O.R. Tambo International (Johannesburg), Cape Town International, King Shaka International (Durban), Bram Fischer International (Mangaung), Port Elizabeth International, East London, Upington, Kimberley and George.
C19: b Figures will not add up, as unscheduled movements are included in the final tally.

Sheet SA 9 airports.15-25
B3: Aircraft landings at South Africa’s nine major airportsa, 2015/16-2024/25
B5: Airport | C5: 2015/16 | D5: 2016/17 | E5: 2017/18 | F5: 2018/19 | G5: 2019/20 | H5: 2020/21 | I5: 2021/22 | J5: 2022/23 | K5: 2023/24 | L5: 2024/25 | O5: 2024/25
B6: Bram Fischer Airport | C6: 8780 | D6: 9053 | E6: 9936 | F6: 9440 | G6: 8737 | H6: 3018 | I6: 6236 | J6: 6868 | K6: 6251 | L6: 6111 | N6: Bram Fischer Airport (Mangaung) | O6: 6111 | P6: =(O6/Total56325445) -> 0.02662594276
B7: Cape Town International Airport | C7: 50127 | D7: 49663 | E7: 51497 | F7: 49338 | G7: 45092 | H7: 18413 | I7: 37767 | J7: 45145 | K7: 49581 | L7: 50650 | N7: Cape Town International Airport | O7: 50650 | P7: 0.2206846671
B8: King Phalo (East London) Airport | C8: 14998 | D8: 15004 | E8: 13521 | F8: 12427 | G8: 13287 | H8: 3624 | I8: 9284 | J8: 8831 | K8: 8524 | L8: 6879 | N8: East London Airport | O8: 6879 | P8: 0.02997215844
B9: George Airport | C9: 29161 | D9: 27999 | E9: 17051 | F9: 21509 | G9: 18381 | H9: 5120 | I9: 10213 | J9: 14349 | K9: 14622 | L9: 15797 | N9: George Airport | O9: 15797 | P9: 0.06882834524
B10: Kimberley Airport | C10: 5044 | D10: 4851 | E10: 4445 | F10: 4892 | G10: 4445 | H10: 2450 | I10: 4183 | J10: 4322 | K10: 3775 | L10: 4139 | N10: Kimberley Airport | O10: 4139 | P10: 0.01803383686
B11: King Shaka International Airport | C11: 26190 | D11: 27495 | E11: 27058 | F11: 25571 | G11: 25383 | H11: 7332 | I11: 14929 | J11: 18672 | K11: 20560 | L11: 20467 | N11: King Shaka International Airport | O11: 20467 | P11: 0.08917577654
B12: Chief David Stuurman (Port Elizabeth) International Airport | C12: 32516 | D12: 30256 | E12: 26992 | F12: 22655 | G12: 24140 | H12: 9972 | I12: 22052 | J12: 20001 | K12: 19901 | L12: 21987 | N12: Port Elizabeth International Airport | O12: 21987 | P12: 0.09579849507
B13: O.R. Tambo International Airport | C13: 112177 | D13: 111232 | E13: 110286 | F13: 109758 | G13: 105975 | H13: 35230 | I13: 70025 | J13: 90775 | K13: 102152 | L13: 100595 | N13: O.R. Tambo International Airport | O13: 100595 | P13: 0.4382976128
B14: Upington International Airport | C14: 5292 | D14: 6504 | E14: 3671 | F14: 3579 | G14: 3079 | H14: 1275 | I14: 2127 | J14: 2825 | K14: 2970 | L14: 2888 | N14: Upington International Airport | O14: 2888 | P14: 0.01258316522
B15: Source: ACSA, Integrated Annual Report 2025, p82 | O15: =SUM(O6:O14) -> 229513
B16: a These are the nine airports run by Acsa, namely O.R. Tambo International (Johannesburg), Cape Town International, King Shaka International (Durban), Bram Fischer International (Mangaung), Port Elizabeth International, East London, Upington, Kimberley and George.

Sheet Ports

Sheet Cargo.24&25
A2: Ports
A4: Cargo handleda at South African ports, June 2024 and June 2025
A5: —June 2024—
A6: Cargo handled | B6: Richards Bay | C6: Durban | D6: East London | E6: Ngqura | F6: Port Elizabeth | G6: Mossel Bay | H6: Cape Town | I6: Saldanha | J6: Total
A7: Landed | B7: —Metric tonnesb—
A8: Imports | B8: 346096 | C8: 382270 | D8: 6004 | E8: — | F8: 12724 | G8: — | H8: 96089 | I8: — | J8: 843183
A9: Coastwisec | B9: — | C9: — | D9: — | E9: — | F9: — | G9: — | H9: — | I9: — | J9: —
A10: Total cargo landed | B10: 346096 | C10: 382270 | D10: 6004 | E10: — | F10: 12724 | G10: — | H10: 96089 | I10: — | J10: 843183
A11: Shipped
A12: Exports | B12: 6202347 | C12: 743089 | D12: 31338 | E12: 580678 | F12: 751952 | G12: — | H12: 10566 | I12: 5610765 | J12: 13930735
A13: Total cargo shipped | B13: 6202347 | C13: 743089 | D13: 31338 | E13: 580678 | F13: 751952 | G13: — | H13: 10566 | I13: 5610765 | J13: 13930735
A14: Coastwisec | B14: 5906 | C14: — | D14: — | E14: — | F14: — | G14: — | H14: — | I14: — | J14: 5906
A15: Transhipment cargod | B15: — | C15: — | D15: — | E15: — | F15: — | G15: — | H15: — | I15: — | J15: —
A16: Total cargo handlede | B16: 6554349 | C16: 1125360 | D16: 37342 | E16: 580678 | F16: 764676 | G16: — | H16: 106654 | I16: 5610765 | J16: 14779824
A17: —June 2025—
A18: Cargo handled | B18: Richards Bay | C18: Durban | D18: East London | E18: Ngqura | F18: Port Elizabeth | G18: Mossel Bay | H18: Cape Town | I18: Saldanha | J18: Total
A19: Landed | B19: —Metric tonnesb—
A20: Imports | B20: 260465 | C20: 295434 | D20: — | E20: — | G20: — | H20: 73802 | I20: 12000 | J20: 641701
A21: Coastwisec | B21: — | C21: — | D21: — | E21: — | F21: — | G21: — | H21: — | I21: —
A22: Total cargo landed | B22: 260465 | C22: 295434 | E22: — | G22: — | H22: 73802 | I22: 12000 | J22: 641701
A23: Shipped
A24: Exports | B24: 6884726 | C24: 759812 | D24: 40000 | E24: 617842 | F24: 898809 | G24: — | I24: 5379288 | J24: 14580477
A25: Total cargo shipped | B25: 6884726 | C25: 759812 | D25: 40000 | E25: 617842 | F25: 898809 | G25: — | I25: 5379288 | J25: 14580477
A26: Coastwisec | C26: 55000 | D26: — | E26: — | F26: — | G26: — | H26: — | I26: — | J26: 55000
A27: Transhipment cargod | B27: — | C27: — | D27: — | E27: — | F27: — | G27: — | H27: — | I27: — | J27: —
A28: Total cargo handlede | B28: 7145191 | C28: 1110246 | D28: 40000 | E28: 617842 | F28: 898809 | G28: — | H28: 73802 | I28: 5391288 | J28: 15277178
A29: Source: Transnet National Ports Authority, Port statistics, www.transnetnationalportsauthority.net, accessed 15 May 2026
A30: a Latest available data in June 2025.
A31: b One metric tonne = 1 000 kilograms.
A32: c Or short sea shipping, is the transportation of merchandise between two seaports of the same country.
A33: d The shipment of goods or containers to an intermediate destination, then to yet another destination excluding vehicles.
A34: e Total cargo handled excluding vehicles.

Sheet Cargo.vehicles.24&25
A2: Vehicles handleda at South African ports, June 2024 and June 2025
A4: —June 2024—
A5: Vehicles handled | B5: Richards Bay | C5: Durban | D5: East London | E5: Ngqura | F5: Port Elizabeth | G5: Mossel Bay | H5: Cape Town | I5: Saldanha | J5: Total
A6: Landed | B6: —Metric tonnesa—
A7: Imports | B7: — | C7: 21317 | D7: 430 | E7: — | F7: 1987 | G7: — | H7: — | I7: — | J7: 23734
A8: Coastwiseb | B8: — | C8: — | D8: — | E8: — | F8: — | G8: — | H8: — | I8: — | J8: —
A9: Total vehicles landed | B9: — | C9: 21317 | D9: 430 | E9: — | F9: 1987 | G9: — | H9: — | I9: — | J9: 23734
A10: Shipped
A11: Exports | B11: — | C11: 16 697 | D11: 7083 | E11: — | F11: 14186 | G11: — | H11: 3 | I11: — | J11: 37969
A12: Coastwiseb | B12: — | C12: — | D12: — | E12: — | F12: — | G12: — | H12: — | I12: — | J12: —
A13: Total vehicles shipped | B13: — | C13: 16697 | D13: 7083 | E13: — | F13: 14186 | G13: — | H13: 3 | I13: — | J13: 37969
A14: Transhipment cargoc | B14: — | C14: 3510 | D14: — | E14: — | F14: — | G14: — | H14: — | I14: — | J14: 3510
A15: Total vehicles handled | B15: — | C15: 41524 | D15: 7513 | E15: — | F15: 16173 | G15: — | H15: 3 | I15: — | J15: 65213
A16: —June 2025—
A17: Vehicles handled | B17: Richards Bay | C17: Durban | D17: East London | E17: Ngqura | F17: Port Elizabeth | G17: Mossel Bay | H17: Cape Town | I17: Saldanha | J17: Total
A18: Landed | B18: —Metric tonnesa—
A19: Imports | B19: — | C19: 28766 | D19: 736 | E19: — | F19: 2883 | G19: — | H19: 3 | I19: — | J19: 32388
A20: Coastwiseb | B20: — | C20: — | D20: — | E20: — | F20: — | G20: — | H20: — | I20: — | J20: —
A21: Total vehicles landed | B21: — | C21: 28766 | D21: 736 | E21: — | F21: 2883 | G21: — | H21: 3 | I21: — | J21: 32388
A22: Shipped
A23: Exports | B23: — | C23: 20094 | D23: 5027 | E23: — | F23: 11496 | G23: — | H23: 1 | I23: — | J23: 36618
A24: Coastwiseb | B24: — | C24: — | D24: — | E24: — | F24: — | G24: — | H24: — | I24: — | J24: —
A25: Total vehicles shipped | B25: — | C25: 20094 | D25: 5027 | E25: — | F25: 11496 | G25: — | H25: 1 | I25: — | J25: 36618
A26: Transhipment cargoc | B26: — | C26: 1281 | D26: — | E26: — | F26: — | G26: — | H26: 4 | I26: — | J26: 1285
A27: Total vehicles handled | B27: — | C27: 50141 | D27: 5763 | E27: — | F27: 14379 | G27: — | H27: 8 | I27: — | J27: 70291
A28: Source: Transnet National Ports Authority, Port statistics, www.transnetnationalportsauthority.net, accessed 15 May 2026
A29: a One metric tonne = 1 000 kilograms.
A30: b Or short sea shipping is the transportation of merchandise between two seaports of the same country.
A31: c The shipment of goods or containers to an intermediate destination, then to yet another destination.

Sheet Supply Chain Indicators
A2: Supply chain indicators, 2000-25
A4: Year | B4: Tonnage handled at harbours and docksa | C4: Twenty-foot equivalent units handledb | D4: Baltic Dry indexc | E4: Shanghai Export Containerized Freight Index
A5: 2000 | B5: 162782 | C5: — | D5: 1615 | E5: —
A6: 2001 | B6: 159429 | C6: — | D6: 1187 | E6: —
A7: 2002 | B7: 167089 | C7: — | D7: 1182 | E7: —
A8: 2003 | B8: 171639 | C8: — | D8: 2734 | E8: —
A9: 2004 | B9: 168751 | C9: 2633 | D9: 4483 | E9: —
A10: 2005 | B10: 173555 | C10: 2996 | D10: 3253 | E10: —
A11: 2006 | B11: 179926 | C11: 3417 | D11: 3239 | E11: —
A12: 2007 | B12: 183353 | C12: 3712 | D12: 7252 | E12: —
A13: 2008 | B13: 185080 | C13: 3909 | D13: 6070 | E13: —
A14: 2009 | B14: 182735 | C14: 3511 | D14: 2641 | E14: —
A15: 2010 | B15: 194619 | C15: 4013 | D15: 2675 | E15: —
A16: 2011 | B16: 205167 | C16: 4393 | D16: 1532 | E16: 1007
A17: 2012 | B17: 210480 | C17: 4309 | D17: 885 | E17: 1249
A18: 2013 | B18: 214828 | C18: 4663 | D18: 1256 | E18: 1073
A19: 2014 | B19: 220060 | C19: 4588 | D19: 1065 | E19: 1062
A20: 2015 | B20: 234549 | C20: 4614 | D20: 726 | E20: 737
A21: 2016 | B21: 224260 | C21: 4355 | D21: 676 | E21: 647
A22: 2017 | B22: 227858 | C22: 4635 | D22: 1153 | E22: 829
A23: 2018 | B23: 227795 | C23: 4883 | D23: 1348 | E23: 835
A24: 2019 | B24: 232662 | C24: 4528 | D24: 1341 | E24: 812
A25: 2020 | B25: 222423 | C25: 4076 | D25: 1056 | E25: 1242
A26: 2021 | B26: 217714 | C26: 4379 | D26: 2931 | E26: 3769
A27: 2022 | B27: 211124 | C27: 4225 | D27: 1930 | E27: 3446
A28: 2023 | B28: 205616 | C28: 4141 | D28: 1398 | E28: 1004
A29: 2024 | B29: 210858 | C29: 4304 | D29: 1747 | E29: 2496
A30: 2025 | B30: 220953 | C30: 4473 | D30: 1684 | E30: 1588
A31: Source: South African Reserve Bank (SARB) timeseries data, accessed 31 March 2026
A33: a Thousands metric tons. Transnet total cargo handled at ports in South Africa
A34: b Transnet twenty-foot equivalent units (TEUs)
A35: c The Baltic Dry Index (BDI) is a shipping freight-cost index issued daily by the London based Baltic Exchange. It is reported around the world as a proxy for dry bulk shipping stocks as well as a general shipping market bellwether.
A36: d Index reflects the weekly spot rates for shipping containers from Shanghai to major global ports,

Sheet Roads.Rail

Sheet All roads.26
B2: Roads and railways
B4: South Africa's road network (kilometres), 2026 | T4: https://www.transport.gov.za/?page_id=1042
B6: Authority | C6: Paved | D6: Gravel | E6: Total | F6: Proportion of total | Y6: Authority | Z6: Paved | AA6: Gravel | AB6: Total
B7: Sanral | C7: 21403 | D7: — | E7: =SUM(C7:D7) -> 21403 | F7: =(E7/Total6351320) -> 0.02853733333 | Y7: Sanral | Z7: 21403 | AA7: 0 | AB7: =SUM(Z7:AA7) -> 21403
B8: Provinces | C8: 47348 | D8: 157482 | E8: =SUM(C8:D8) -> 204830 | F8: =(E8/Total6351320) -> 0.2731066667 | Y8: Provinces | Z8: 47348 | AA8: 157482 | AB8: =SUM(Z8:AA8) -> 204830
B9: Municipalities | C9: 90701 | D9: 201506 | E9: 292207 | F9: =(E9/Total6351320) -> 0.3896093333 | Y9: Municipalities | Z9: 90701 | AA9: 201506 | AB9: =SUM(Z9:AA9) -> 292207
B10: Unproclaimed/unspecified | C10: — | D10: — | E10: 231560 | F10: =(E10/Total6351320) -> 0.3087466667 | Y10: Unproclaimed | Z10: — | AA10: 131919 | AB10: =SUM(Z10:AA10) -> 131919
B11: Totala | C11: — | D11: — | E11: =SUM(E7:E10) -> 750000 | F11: 1 | Y11: Totala | Z11: =SUM(Z7:Z10) -> 159452 | AA11: =SUM(AA7:AA10) -> 490907 | AB11: =SUM(AB7:AB10) -> 650359
B12: Source: Department of Transport, www.transport.gov.za, accessed 15 May 2026
B13: a Rounded estimate.

Sheet Rail.Road.transport 13-25
B2: Road and rail transportation payloada, 2013-25
C4: Year | D4: Rail (thousand tons) | E4: Value Rm | F4: Road (thousand tons) | G4: Value Rm | H4: Total (thousand tons) | I4: Value Rm
C5: 2013 | D5: 213584 | E5: 32976 | F5: 520793 | G5: 71015 | H5: 734377 | I5: 103992
C6: 2014 | D6: 223568 | E6: 36359 | F6: 565265 | G6: 83294 | H6: 788833 | I6: 119654
C7: 2015 | D7: 222229 | E7: 37107 | F7: 550372 | G7: 87208 | H7: 772601 | I7: 123315
C8: 2016 | D8: 219417 | E8: 37835 | F8: 617413 | G8: 97897 | H8: 836560 | I8: 135732
C9: 2017 | D9: 226058 | E9: 41761 | F9: 687894 | G9: 110265 | H9: 913952 | I9: 152026
C10: 2018 | D10: 217401 | E10: 42288 | F10: 735110 | G10: 121102 | H10: 970511 | I10: 163389
C11: 2019 | D11: 215740 | E11: 44133 | F11: 696972 | G11: 121525 | H11: 912708 | I11: 165656
C12: 2020 | D12: 191854 | E12: 39996 | F12: 614945 | G12: 108746 | H12: 806790 | I12: 148742
C13: 2021 | D13: 178771 | E13: 37959 | F13: 688364 | G13: 127782 | H13: 867135 | I13: 165742
C14: 2022 | D14: 156183 | E14: 34682 | F14: 852679 | G14: 177551 | H14: 1008862 | I14: 212233
C15: 2023 | D15: 160375 | E15: 40155 | F15: 862332 | G15: 181751 | H15: 1022706 | I15: 221904
C16: 2024 | D16: 160745 | E16: 43198 | F16: 979798 | G16: 199799 | H16: 1140543 | I16: 242997
C17: 2025 | D17: 168259 | E17: 45762 | F17: 975176 | G17: 199853 | H17: 1143434 | I17: 245613
C18: Source: StatsSA Land Transport Survey, 2013-2025, Statistical Release P7162, time series, accessed 14 May 2026
C19: a The volume of goods transported, quoted in tonnes.
